Workbook

Sheet Home
B10: DUAL Ports - Developing Low carbon Utilities, Abilities and potential of regional entrepreneurial Ports
B11: Developing low carbon port potential: Cost benefit & carbon footprint analyses
B13: Please fill in all red cells!
B15: Version 3.5
B16: =DATE(2018,10,16) -> 2018-10-16
B26: Hamburg Institute of International Economics (HWWI) | 2018
B28: DUAL Ports is co-funded by the North Sea Region Programme 2014-2020 (Priority Eco-innovation priority | J-No: 38-2-7-15)
B29: www.northsearegion.eu/dual-ports

Sheet About
A1: Home ⌂
B2: About
B4: Developing low carbon port potential:
B5: Cost benefit & carbon footprint analyses
B7: A cost-benefit analysis - CBA - is tool used to evaluate an investment decision in order to assess the welfare change attributable to it. It gives further information to the relevance of the contribution to EU cohesion policy objectives. The overall purpose of CBA is to facilitate a more efficient allocation of resources. A CBA demonstrates further the convenience for society of a particular (political) intervention (EC 2014, 15). This CBA tool focuses to calculate the carbon footprint of investment projects. The instrument shall be: - simple and transparent; - capable of being integrated into and transfered to other projects; and - comply with existent and upcoming standards. Further requirements of this CBA-tool is to have a self-explanatory character with a simple and understanding design. Usual problems with CBA tools are: - the overreliance on data from past projects; - the use of subjective impressions in assessment; - inappropriate use of heuristics to derive money cost of the intangible elements; and - confirmation bias among project supporters. The cost benefit and carbon footprint tool measures if the project's aim of 20% operation cost reduction, of 20% total cost reduction, and 10% emission reduction is fullfilled. In result, it further differentiate between the project realized performance (do-someting scenario) and the project target (reference scenario).

Sheet Content
A1: Home ⌂
B2: Content
C3: Description | D3: INPUT sheet
B4: Home
B5: About
B6: Description | C6: Short investment description. | D6: Yes
B7: Investment volume | C7: Quantification of the investment costs and financing structure. | D7: Yes
B8: Externalities - Implementation | C8: Quantification of energy and resource consumption and structure. | D8: Yes
B9: Operating results | C9: Quantification of operating costs and revenues of the project. | D9: Yes
B10: Externalities - Operation | C10: Environmental Impacts. | D10: Yes
B11: Indirect Externalities | C11: Energy consumption | D11: Yes
B12: Result table | C12: The main results of the calculation summerized in a table.
B13: Result chart | C13: The main results of the calculation summerized in several charts.
B14: List of abbreviation and definitions | C14: In the list of abbreviation and definitions useful hints relevant for the input data can be found.
B15: Sources | C15: Used sources.
B16: Imprint and Disclaimer | C16: Contact, imprint, and disclaimer
B17: Appendix Input Data | C17: Further input data needed for the calculation of the cost/benefit analysis.

Sheet Description
A1: Home ⌂
A2: Content & | B2: Project- INPUT
B4: Project information | C4: =IF(C5<>"","","<< PLEASE, FILL IN >>") -> << PLEASE, FILL IN >>
B5: Beneficiary
B6: Project name
B7: Project country (please select from dropdown-list) | C7: Belgium
B8: Year of reporting | C8: 2017
B9: Click for further information
B11: General information | C11: =IF(C12<>"","","<< PLEASE, FILL IN >>") -> << PLEASE, FILL IN >>
B12: Year of establishment
B13: Type of port: (please select from dropdown-list) | C13: Private Service Port (if Infrastructure (private); suprastructure (private); workers (private))
B14: Information on your activities and services (please select):
B15: Provided directly | C15: Sub contracted
B28: Short description of the green investment | C28: =IF(B29<>"","","<< PLEASE, FILL IN >>") -> << PLEASE, FILL IN >>
C38: =IF(B40<>"","","<< PLEASE, FILL IN >>") -> << PLEASE, FILL IN >>
B39: Short description of the economic and environmental benefits of the green investment (e.g. expected CO2e reduction) in short and long term
B65: Are you a
B66: Public Service Port (if infrastructure (public); suprastructure; workers (public))
B67: Tool Port (if Infrastructure (public); suprastructure (public); workers (private))
B68: Landlord Port (if Infrastructure (public); suprastructure (private); workers (private))
B69: Private Service Port (if Infrastructure (private); suprastructure (private); workers (private))
B70: none of these / others

Sheet Investment volume
A1: Home ⌂
A2: Content & | B2: Investment volume - INPUT
B3: This is only assigned to the project itself. If your project does not include investments. Only affects operating costs/revenues, skip this sheet.
B5: Financial investment volume | C5: Short description | D5: Conventional investment (Click for further information) | E5: Green investment (Click for further information)
B6: Total investment costs - in Euro | C6: Amount of financial resources needed to implement the project (over the whole implementation period) | D6: 0 | E6: 0
B7: Scrap value after operation - in Euro (Click for further information) | C7: Scrap value after the appraisal period/operation period. The operation period has to be entered on the sheet "Operating results". | D7: 0 | E7: 0
B9: Sources of finance (Click for further information) | D9: Conventional investment | E9: Green investment
B11: EU co-financing - in % | D11: 0 | E11: 0
B12: Norwegian co-financing - in % | D12: 0 | E12: 0
B13: Further public contribution - in % | D13: 0 | E13: 0
B14: Loans - in % | D14: 1 | E14: 1
B15: Equity - in % | D15: 0 | E15: 0
D16: =IF(SUM(D11:D15)<>1,"The provided financial information is implausible!","") ->  | E16: =IF(SUM(E11:E15)<>1,"The provided financial information is implausible!","") -> 
B18: Interest rate on loans
B19: interest rate (per annum) - in % | C19: effective interest rate (p.a.) relevant for the project (no difference between conventional and green investment allowed) | D19: 0

Sheet Externalities - Implementation
A1: Home ⌂
A2: Content & | B2: Implementation/Construction: Environmental Impacts - INPUT
B3: This sheet only refers to the implementation/construction of the investment, NOT to the operation.
B5: Environmental Factors | C5: Short description | D5: Conventional investment | E5: Green investment | F5: Result
A6: A | B6: Energy consumption for implementation (Click for further information) | C6: Only energy consumption is relvevant here, not production (for others).
B7: electricity (grid) - in kWh | C7: Does not include consumed electricity from own production. National energymix assumed. | D7: 0 | E7: 0
B8: optional: share of green grid electricity - in % | C8: If the share of green (hydro, geothermal, wind, solar) electricity differs from the national mix, this can be entered here. | D8: 0 | E8: 0
B9: electricity (own production)
B10: hydropower - in kWh | D10: 0 | E10: 0
B11: geothermal - in kWh | D11: 0 | E11: 0
B12: wind - in kWh | D12: 0 | E12: 0
B13: solar - in kWh | D13: 0 | E13: 0
B14: fuel consumption
B15: (truck) diesel - in kWh | D15: 0 | E15: 0
B16: marine diesel - in kWh | D16: 0 | E16: 0
B17: gasoline - in kWh | D17: 0 | E17: 0
B18: heating oil - in kWh | D18: 0 | E18: 0
B19: natural gas - in kWh | D19: 0 | E19: 0
B20: liquid gas - in kWh | D20: 0 | E20: 0
B21: lignite - in kWh | D21: 0 | E21: 0
B22: stone coal (brikets) - in kWh | D22: 0 | E22: 0
B23: stone coal (koks) - in kWh | D23: 0 | E23: 0
B24: wood (peaces) - in kWh | D24: 0 | E24: 0
B25: wood (pellets) - in kWh | D25: 0 | E25: 0
B26: Total energy consumption for implementation - in kWh | C26: Click for further information | D26: =SUM(D15:D25)+SUM(D10:D13)+D7 -> 0 | E26: =SUM(E15:E25)+SUM(E10:E13)+E7 -> 0 | F26: =IF(D26=0,"",CONCATENATE("Reduction in engery use under green investment in comparison with conventional investment: ",ROUND(-(E26-D26)/D26*100,2)," %")) -> 
B27: thereof energy from (own) renewable sources - in kWh | D27: =SUM(D10:D13,D24:D25) -> 0 | E27: =SUM(E10:E13,E24:E25) -> 0 | F27: =IF(D27=0,"",CONCATENATE("Increase in energy use from renewable sources under green investment in comparison with conventional investment: ",ROUND((E27-D27)/D27*100,2)," %")) -> 
A28: B | B28: Waste treatment during implementation | C28: Only amounts that remain for final treatment (filling) after possible incineration are relevant.
B29: use of waste
B30: as alternative to landfill - in t | D30: 0 | E30: 0
B31: production of waste
B32: for landfill- in t | D32: 0 | E32: 0
B33: Total net production of waste - in t | D33: =D32-D30 -> 0 | E33: =E32-E30 -> 0 | F33: =IF(D33=0,"",CONCATENATE("Reduction in net waste production under green investment in comparison with conventional investment: ",ROUND(-(E33-D33)/D33*100,2)," %")) -> 

Sheet Operating results
A1: Home ⌂
A2: Content & | B2: Operating Revenues and Costs - INPUT
B3: This sheet uses the concept of business units. A business unit is a part of the business providing a certain service for which it makes sense to define indivdual costs and revenues.
C5: Short description | D5: Conventional investment | E5: Green investment
B6: Appraisal period - in years | C6: The appraisal period is usually the lifetime/operation period of the investment (max. 50 years). | D6: =E6 -> 0 | E6: 0
B7: Average annual operating revenue of the project-relevant business unit - in Euro | C7: The revenues refer to the smallest business unit which still covers the whole project. The annual average refers to the appraisal period. | D7: 0 | E7: 0
B9: Average annual operating cost of the project-relevant business unit - in Euro | C9: Operating costs include all the costs to operate and maintain (O&M) the new or upgraded service. Does not include capital costs. | D9: 0 | E9: 0
C10: Click for further information
B11: Average annual operating surplus - in Euro | D11: =D7-D9 -> 0 | E11: =E7-E9 -> 0

Sheet Externalities - Operation
A1: Home ⌂
A2: Content & | B2: Operation: Environmental Impacts - INPUT
B3: This refers again to the smallest business unit which still covers the whole project.
B5: Environmental Factors | C5: Short description | D5: Conventional investment | E5: Green investment | F5: Result
A6: A | B6: Energy consumption of business unit (Click for further information) | C6: Only energy consumption is relvevant here, not production (for others). To be entered as annual averages.
B7: electricity (grid) - in kWh | C7: Does not include consumed electricity from own production. National energymix assumed. | D7: 0 | E7: 0
B8: share of green grid electricity - in % | C8: automatically equal to the corresponding figure from the sheet "Exernalities - Implementation" | D8: ='Externalities - Implementation'!D8 -> 0 | E8: ='Externalities - Implementation'!E8 -> 0
B9: electricity (own production)
B10: hydropower - in kWh | D10: 0 | E10: 0
B11: geothermal - in kWh | D11: 0 | E11: 0
B12: wind - in kWh | D12: 0 | E12: 0
B13: solar - in kWh | D13: 0 | E13: 0
B14: fuel consumption
B15: (truck) diesel - in kWh | D15: 0 | E15: 0
B16: marine diesel - in kWh | D16: 0 | E16: 0
B17: gasoline - in kWh | D17: 0 | E17: 0
B18: heating oil - in kWh | D18: 0 | E18: 0
B19: natural gas - in kWh | D19: 0 | E19: 0
B20: liquid gas - in kWh | D20: 0 | E20: 0
B21: lignite - in kWh | D21: 0 | E21: 0
B22: stone coal (brikets) - in kWh | D22: 0 | E22: 0
B23: stone coal (koks) - in kWh | D23: 0 | E23: 0
B24: wood (peaces) - in kWh | D24: 0 | E24: 0
B25: wood (pellets) - in kWh | D25: 0 | E25: 0
B26: Total average annual energy consumption - in kWh | C26: Click for further information | D26: =SUM(D15:D25)+SUM(D10:D13)+D7 -> 0 | E26: =SUM(E15:E25)+SUM(E10:E13)+E7 -> 0 | F26: =IF(D26=0,"",CONCATENATE("Reduction in engery use under green investment in comparison with conventional investment: ",ROUND(-(E26-D26)/D26*100,2)," %")) -> 
B27: thereof energy from (own) renewable sources - in kWh | D27: =SUM(D10:D13,D24:D25) -> 0 | E27: =SUM(E10:E13,E24:E25) -> 0 | F27: =IF(D27=0,"",CONCATENATE("Increase in energy use from renewable sources under green investment in comparison with conventional investment: ",ROUND((E27-D27)/D27*100,2)," %")) -> 
A28: B | B28: Waste treatment of business unit | C28: Only amounts that remain for final treatment (filling) after possible incineration are relevant. Annual averages over appraisal period.
B29: use of waste
B30: as alternative to landfill - in t | D30: 0 | E30: 0
B31: production of waste
B32: for landfill- in t | D32: 0 | E32: 0
B33: Average annual net production of waste - in t | D33: =D32-D30 -> 0 | E33: =E32-E31 -> 0 | F33: =IF(D33=0,"",CONCATENATE("Reduction in net waste production under green investment in comparison with conventional investment: ",ROUND(-(E33-D33)/D33*100,2)," %")) -> 

Sheet Indirect Externalities
A1: Home ⌂
A2: Content & | B2: Indirect Environmental Impacts - INPUT
B5: Environmental Factors | C5: Short description | D5: Conventional investment | E5: Green investment | F5: Result
B6: Customers: Energy consumption | C6: Consumption of all relevant customers. Annual average over the appraisal period.
B7: fuel consumption
B8: (truck) diesel - in kWh | D8: 0 | E8: 0
B9: marine diesel - in kWh | D9: 0 | E9: 0
B10: gasoline - in kWh | D10: 0 | E10: 0
B11: heating oil - in kWh | D11: 0 | E11: 0
B12: natural gas - in kWh | D12: 0 | E12: 0
B13: liquid gas - in kWh | D13: 0 | E13: 0
B14: lignite - in kWh | D14: 0 | E14: 0
B15: stone coal (brikets) - in kWh | D15: 0 | E15: 0
B16: stone coal (koks) - in kWh | D16: 0 | E16: 0
B17: wood (peaces) - in kWh | D17: 0 | E17: 0
B18: wood (pellets) - in kWh | D18: 0 | E18: 0
B19: Sum of indirect annual energy consumption - in kWh | C19: Click for further information | D19: =SUM(D8:D18) -> 0 | E19: =SUM(E8:E18) -> 0

Sheet Result table
A1: Home ⌂
A2: Content & | B2: Result table
B4: CBA overview | D4: Conventional investment | E4: Green investment
B5: present value of financial inflows (Click for further information) | D5: =SUM('Appendix - Input data'!C159:BD159,'Appendix - Input data'!C162:BD162) -> 0 | E5: =SUM('Appendix - Input data'!C172:BD172,'Appendix - Input data'!C175:BD175) -> 0
B6: present value of financial outflows | D6: =SUM('Appendix - Input data'!C160:BD160,'Appendix - Input data'!C163:BD163) -> 0 | E6: =SUM('Appendix - Input data'!C173:BD173,'Appendix - Input data'!C176:BD176) -> 0
B7: net present value (private) | D7: =D5-D6 -> 0 | E7: =E5-E6 -> 0
B8: present value of evnironmental costs | D8: =SUM('Appendix - Input data'!C164:BE167) -> 0 | E8: =SUM('Appendix - Input data'!C177:BE180) -> 0
B10: Benefit Cost Ratios and targets | D10: Conventional investment | E10: Green investment | F10: Result
B11: Benefit Cost Ratio (Click for further information) | D11: =IF(D6<>0,D5/D6,0) -> 0 | E11: =IF(E6<>0,E5/E6,0) -> 0 | F11: =IF(E11>=1,CONCATENATE("With a BCR equal to ",ROUND(E11,2),", the green investment is expected to be beneficial."),CONCATENATE("With a BCR equal to ",ROUND(E11,2),", the benefits do not exceed the costs.")) -> With a BCR equal to 0, the benefits do not exceed the costs.
B12: Social Benefit-Cost Ratio (Click for further information) | D12: =IF(D6<>0,D5/(D6+D8),0) -> 0 | E12: =IF(E6<>0,E5/(E6+E8),0) -> 0 | F12: =IF(E12>=1,CONCATENATE("With a Social BCR equal to ",ROUND(E12,2),", the green investment is expected to be beneficial."),CONCATENATE("With a Social BCR equal to ",ROUND(E12,2),", the benefits do not exceed the costs.")) -> With a Social BCR equal to 0, the benefits do not exceed the costs.
B13: Target 1a: 20% operating cost reduction (€/a) | D13: =IF('Operating results'!D6>0,'Operating results'!D9,0) -> 0 | E13: =IF('Operating results'!E6>0,'Operating results'!E9,0) -> 0 | F13: =IF(D13<>0,IF(E13/D13<=0.8,CONCATENATE("Target is fulfilled (",100*ROUND(1-E13/D13,2)," %)"),CONCATENATE("Target is not fulfilled (",100*ROUND(1-E13/D13,2)," %)")),"Target is not fulfilled") -> Target is not fulfilled
B14: Target 1b: 20% total cost reduction (€) | D14: =D6 -> 0 | E14: =E6 -> 0 | F14: =IF(D14<>0,IF(E14/D14<=0.8,CONCATENATE("Target is fulfilled (",100*ROUND(1-E14/D14,2)," %)"),CONCATENATE("Target is not fulfilled (",100*ROUND(1-E14/D14,2)," %)")),"Target is not fulfilled") -> Target is not fulfilled
B15: Target 2: 10% carbon emission reduction (t CO2e) | D15: ='Operating results'!D6*('Appendix - Input data'!D58+'Appendix - Input data'!E85)+'Appendix - Input data'!H58+'Appendix - Input data'!E88 -> 0 | E15: ='Operating results'!E6*('Appendix - Input data'!E58+'Appendix - Input data'!E86)+'Appendix - Input data'!H77+'Appendix - Input data'!E89 -> 0 | F15: =IF(D15<>0,IF(E15/D15<=0.9,CONCATENATE("Target is fulfilled (",100*ROUND(1-E15/D15,2)," %)"),CONCATENATE("Target is not fulfilled (",100*ROUND(1-E15/D15,2)," %)")),"Target is not fulfilled") -> Target is not fulfilled
B17: Direct environmental impacts | D17: Conventional investment | E17: Green investment
B18: CO2e [t] | D18: =('Appendix - Input data'!$D$58+'Appendix - Input data'!$E$85)*'Operating results'!D6+'Appendix - Input data'!$E$88+'Appendix - Input data'!$H$58 -> 0 | E18: =('Appendix - Input data'!$D$77+'Appendix - Input data'!$E$86)*'Operating results'!E6+'Appendix - Input data'!$E$89+'Appendix - Input data'!$H$77 -> 0
B19: sulphur [kg] | D19: =('Appendix - Input data'!$E$58*'Operating results'!D6+'Appendix - Input data'!$I$58)/1000 -> 0 | E19: =('Appendix - Input data'!$E$77*'Operating results'!E6+'Appendix - Input data'!$I$77)/1000 -> 0
B20: nitrogen [kg] | D20: =('Appendix - Input data'!$F$58*'Operating results'!D6+'Appendix - Input data'!$J$58)/1000 -> 0 | E20: =('Appendix - Input data'!$F$77*'Operating results'!E6+'Appendix - Input data'!$J$77)/1000 -> 0
B21: waste [t] | D21: ='Externalities - Operation'!D33*'Operating results'!D6+'Externalities - Implementation'!D33 -> 0 | E21: ='Externalities - Operation'!E33*'Operating results'!E6+'Externalities - Implementation'!E33 -> 0
B23: Indirect environmental impacts
B24: CO2e [t] | D24: ='Appendix - Input data'!L58 -> 0 | E24: ='Appendix - Input data'!L77 -> 0
B25: sulphur [kg] | D25: ='Appendix - Input data'!M58/1000 -> 0 | E25: ='Appendix - Input data'!M77/1000 -> 0
B26: nitrogen [kg] | D26: ='Appendix - Input data'!N58/1000 -> 0 | E26: ='Appendix - Input data'!N77/1000 -> 0

Sheet Result chart
A1: Home ⌂
A2: Content & | B2: Result chart
C23: conventional | D23: green | E23: target
B24: operating cost reduction | C24: 100 | D24: =IF('Result table'!D13<>0,'Result table'!E13/'Result table'!D13*100,100) -> 100 | E24: 80
B25: total cost reduction | C25: 100 | D25: =IF('Result table'!D14<>0,'Result table'!E14/'Result table'!D14*100,100) -> 100 | E25: 80
B26: emissions reduction | C26: 100 | D26: =IF('Result table'!D15<>0,'Result table'!E15/'Result table'!D15*100,100) -> 100 | E26: 90

Sheet List of abbr. and definitions
A1: Home ⌂
A2: Content & | B2: List of abbreviation and definitions
B4: Abbrivation | D4: Definition | E4: Source
A5: A | C5: Additional costs of investment | D5: These costs are composed of start-up and planning costs (incl. costs of construction phase, tender off etc.), land costs, buildings costs and damage to properties/compensation payment (inlc. for compensation area).
A6: top ↑ | C6: (Annual average) energy consumption | D6: The energy consumption that can be directly attributed to the investment project (e. g. indirect GHG emissions caused by e. g. transportation, heating, electricity). Lower overall consumption might therefore reduce indirect GHG emissions. To quantify the reduction in GHG emissions that is due to a change in the energy mix (e. g. wind instead of diesel) we require detailed information on the sources of energy consumption.
C7: Annual average GHGe savings that are not already included in category A and B | D7: Values entered here indicate a reduction in GHG emissions that is not attributed to a lower (or greener) energy consumption of the project itself. This includes for example spillovers from the new investment project to other port areas that are not included in A or saving measures of the Green Officer.
C8: Avoided municipal cleaning costs by using polluted materials | D8: It is seen as a positive social benefit if cleaning costs, that would otherwise accrue to the public (the municipality), are privatised. Cleaning costs are already part of the operating costs. Therefore we explicitly count cleaning costs, that would accrue to the municipality without the project, as internalisation of external effects on the benefit side.
A9: B | B9: BCR | C9: Benefit-cost ratio | D9: A benefit-cost ratio (BCR)/Profitability Index Rate is an indicator, used in the formal discipline of cost-benefit analysis, that attempts to summarize the overall value for money of a project or proposal. A BCR is the ratio of the benefits of a project or proposal, expressed in monetary terms, relative to its costs, also expressed in monetary terms. All benefits and costs should be expressed in discounted present values. The higher the BCR the better the investment. General rule of thumb is that if the benefit is higher than the cost the project is a good investment.
A10: top ↑ | C10: Benefit-cost ratio including social benefit (Social-Benefit-Cost Ratio) | D10: Same rationale as for the regular benefit-cost-ratio. Additionally social costs are explicitly quantified and their monetary value is included in the calculation. The internalisation of external effects is quantified and included as a benefit.
B11: BAU | C11: Business-As-Usual (do-nothing) | D11: The objectives of the project remains as it would be with no project (counterfactual scenario). The objective of the project includes costs (and revenues) to operate and maintain the service.
A12: C | B12: CO2e | C12: CO2-equivalent
A13: top ↑ | B13: CI | C13: Conventional investment | D13: An investment project that would be realised if no green investment was implemented. This could possibly include investments that are needed to ensure the maintenance of the business as usual (see also BAU).
B14: CBA | C14: Cost-Benefit-Analysis
A15: D | C15: Damage of properties | D15: Damage of properties of other
A16: top ↑ | B16: do-minimum | C16: Do-minimum scenario | D16: The objectives of the do-minimus scenario remains as it would be with no project (counterfactual scenario). The do-minimum scenario includes necessary improvment work/small adaptation investments.
B17: do-something | C17: Do-something scenario | D17: Represents changes to the objectives of the project (concentional/green investment).
A18: E | B18: ECB | C18: European central bank
A19: top ↑ | B19: EC | C19: European Commission
B20: EIB | C20: European Investment Bank
A21: F | B21: FDR | C21: Financial Discount Rate | D21: An appropriate Financial Discount Rate (FDR) is adopted in order to calculate the present value of the future cash flows. The financial discount rate reflects the opportunity cost of capital. The practical ways of estimating the reference rate to use for discounting are discussed in Annex I, while the box below reminds the European Commission’s reference parameter suggested for the programming period 2014-2020. According to Article 19 (Discounting of cash flows) of Commission Delegated Regulation (EU) No 480/2014, for the programming period 2014-2020, the European Commission recommends that a 4 % discount rate in real terms is considered as the reference parameter for the real opportunity cost of capital in the long term. Values differing from the 4 % benchmark may, however, be justified on the grounds of international macroeconomic trends and conjunctures, the Member State’s specific macroeconomic conditions and the nature of the investor and/or the sector concerned. To ensure consistency amongst the discount rates used for similar projects in the same country, the Commission encourages the Member States to provide their own benchmark for the financial discount rate in their guidance documents and then to apply it consistently in project appraisal at national level. | E21: European Commission (2014)
A22: top ↑ | C22: Financial Net Present Value (cumulative) | D22: The sum of the discounted net cash-flows over the appraisal period. Equal to Present Value of Benefits less Present Value of Costs.
B23: FNPV(K) | C23: Financial Net Present Value on capital | D23: The financial net present value of capital, FNPV(K), in this case, is the sum of the net discounted cash flows that accrue to the national beneficiaries (public and private combined) due to the implementation of the project. | E23: European Commission (2014)
B24: FNPV(C) | C24: Financial Net Present Value on investment | D24: The FNPV on investment is defined as the sum that results when the expected investment and operating costs of the project (discounted) are deducted from the discounted value of the expected revenues. | E24: European Commission (2014)
B25: FRR(K) | C25: Financial rate of return on capital (K)
B26: FRR(C) | C26: Financial rate of return on investment (C) | D26: The financial rate of return on investment is defined as the discount rate that produces a zero FNPV. | E26: European Commission (2014)
A27: G | B27: GI | C27: Green investment | D27: An investment project that realised a green investment to avoid social costs (of emissions).
A28: top ↑ | C28: Green Officer | D28: The Green Officer pilot is implementing and coordinating the sustainability management of ports and initiating sustainability projects throughout the ports. The pilot will test innovative management solutions, that can help the ports promote greener services and operations. | E28: DUAL Ports (2017)
B29: GHG | C29: Greenhouse gases emissions | D29: Diferent GHG types (e.g. CO2, N2O, CH4, SF6), activities (e.g. combustion for energy, municipal solid waste landfills) and potential sources of emission (e.g. energey related GHG emissions from combusition, process CO2 from flue gas de-sulphurisation) | E29: European Investment Bank (2014)
A30: I | C30: Initial investment | D30: Initial investment: it includes the capital costs of all the fixed assets (e.g. land, constructions buildings, plant and machinery, equipment, etc.) and non‑fixed assets (e.g. start up and technical costs such as design/planning, project management and technical assistance, construction supervision, publicity, etc.). Where appropriate, changes in net working capital should also be included. Information must be taken from the technical feasibility study(ies)34 and the data to consider are the incremental cash disbursements encountered in the single accounting periods (usually years) to acquire the various types of assets (see box). Cost breakdown over the years should be consistent with the physical realisations envisaged and the time‑plan for implementation (see section 2.7.4)35. Where relevant, the initial investment shall also include environmental and/or climate change mitigating costs during the construction, as usually defined in the EIA or in other appraisal procedures. | E30: European Commission (2014)
A31: top ↑ | C31: Internalisation of Externalities (Avoided social costs) | D31: Since the GHG emission reduction leads to lower social costs we do not include the reduction explicitly as internalisation on the benefit side. This would lead to a double accounting (reduction is a benefit and a cost reduction of the same amount at the same time). However, for the graphical representation, we inlcude the amount of GHG reduction (compared to the CI) and the reduction in wasted materials in this category.
A32: L | B32: Productivity | C32: Labor productivity | D32: With regards to labour costs, any assumed increase in real salaries and wages can be partially offset by increases in labour productivity throughout the time horizon. | E32: European Commission (2014)
A33: top ↑ | C33: Land usage (consumption) | D33: Consumption' of land cover means: (a) The expansion of built-up area which can be directly measured; (b) the absolute extent of land that is subject to exploitation by agriculture, forestry or other economic activities; and (c) the over-intensive exploitation of land that is used for agriculture and forestry. | E33: European Environment Agency (1997)
C34: Long-term perspective | D34: A long‑term outlook is adopted, ranging from a minimum of 10 to a maximum of 30 years or more, depending on the sector of intervention. | E34: European Commission (2014)
A35: M | B35: max. | C35: Maximum
A36: top ↑ | B36: t | C36: Metric tonne
C37: MFI interest rates | D37: MFI interest rate statistics cover all interest rates that monetary financial institutions (MFIs) resident in the euro area – except central banks and money market funds – apply to euro-denominated deposits from and loans to households and non-financial corporations resident in the euro area countries. | E37: European Central Bank (2017).
C38: Microeconomic approach | D38: CBA is typically a microeconomic approach enabling the assessment of the project’s impact on society as a whole via the calculation of economic performance indicators, thereby providing an assessment of expected welfare changes. | E38: European Commission (2014)
B39: min. | C39: Minimum
A40: O | C40: Operating costs | D40: Operating costs include all the costs to operate and maintain (O&M) the new or upgraded service. Cost forecasts can be based on historic unit costs, when patterns of expenditures on operations and maintenance ensured adequate quality standards. Although the actual composition is project‑specific, typical O&M costs include: labour costs for the employer; materials needed for maintenance and repair of assets; consumption of raw materials, fuel, energy, and other process consumables; services purchased from third parties, rent of buildings or sheds, rental of machinery; general management and administration; insurance cost; quality control; waste disposal costs; and emission charges (including. environmental taxes, if applicable). | E40: European Commission (2014)
A41: top ↑ | C41: Opportunity costs | D41: The opportunity cost of a good or service is defined as the potential gain from the best alternative forgone, when a choice needs to be made between several mutually exclusive alternatives. | E41: European Commission (2014)
A42: P | C42: Personnel costs | D42: Personnel costs (average)
A43: top ↑ | C43: Present value of financial inflows | D43: The sum of the discounted financial inflows over the appraisal period.
C44: Private equity (source of financing) | D44: Use of own equity to finance the project. It is not counted as inflow and needs not to be payed back nor payed interest on. In a financing calculation one would need to compute opportunity costs of using own equity but this is not included in this tool.
C45: Private/public contribution (Source of financing) | D45: The part of the investment that is not covered by European Union assistance/co-financing or Norwegian co-financing. It can be divided in the parts own equity, private equity and public contribution.
B46: P | C46: Probabiltiy | D46: Probabiltiy or likelihood of occurence
C47: Public contribution | D47: Sources of financing like grants that do not need to be payed back nor payed interest on, from financiers other than the European Union.
A48: R | C48: Reference period | D48: A reference period is the time period for which statistical results are collected or calculated and to which, as a result, these values refer. The time period may be either a calendar year (reference year), a fiscal year, a semester, a quarter, a month and even a day.
A49: top ↑ | C49: Replacement costs | D49: Replacement costs: includes costs occurring during the reference period to replace short‑life machinery and/or equipment, e.g. engineering plants, filters and instruments, vehicles, furniture, office and IT equipment, etc. Replacement costs are treated together with operating costs for the purpose of calculating the prorata application of discounted net revenue, as set out in Section E.1.2 of Annex II to the Implementing Regulation on application form and CBA methodology. | E49: European Commission (2014)
A50: S | C50: shadow prices | D50: The key concept is the use of shadow prices to reflect the social opportunity cost of goods and services. (For manpower, shadow wage). | E50: European Commission (2014)
C51: Scrap value / residual value | D51: A residual value of the investment is considered at the end of the reference period. The residual value is calculated on the basis of the residual non‑depreciated accounting value. But, the residual value is maybe excluded because in many PPP contracts the infrastructure is returned to the public sector at the end of the period. | E51: European Commission (2014)
A52: top ↑ | C52: Social benefit | D52: Benefits are defined as increases in human wellbeing (utility) and costs are defined as reductions in human wellbeing. For a project or policy to qualify on cost-benefit grounds, its social benefits must exceed its social costs. “Society” is simply the sum of individuals. If individuals’ preferences can be aggregated, social benefit is simply the sum of all individuals’ benefits. | E52: David Pearce, D.; Atkinson, G.; Mourato, S. (2006)
C53: Sources of financing | D53: The main sources can be: - Union assistance (the EU grant/co-financing); - (national) public contribution (including, always, the counterpart funding from the OP plus additional grants or capital subsidies at central, regional or local government level, if any); - private contribution (under a PPP), (equity and loans) if any. The loan is an inflow and it is treated as a financial resource coming from third parties. | E53: European Commission (2014)
C54: Start-up and planning costs | D54: Start-up and planning costs can include costs, e.g. for feasibility studies, borne before the start of the evaluation period, although not eligable for EU funding.
A55: V | B55: VAT | C55: Value Added Tax
A56: W | C56: Water usage (consumption) | D56: Refers to freshwater taken from ground or surface water sources, either permanently or temporarily, and conveyed to the place of use. | E56: David Pearce, D.; Atkinson, G.; Mourato, S. (2006)
A57: top ↑ | B57: WTP | C57: Willingness-to-pay | D57: Measures the maximum amount consumers are willing to pay for a unit of a given good, is used to estimate the direct benefit(s) related to the use of the goods or services rendered by the project. | E57: European Commission (2014)
A58: Y | C58: Year of reporting | D58: Year of reporting (e.g. fiscal or business year, business plan) and year of investment are for reasons of simplications and data imputations the same years.
A59: top ↑

Sheet Sources
A1: Home ⌂
A2: Content & | B2: Sources
B4: David Pearce, D.; Atkinson, G.; Mourato, S. (2006): Cost-Benefit Analysis and the Environment - Recent Developments, OECD (eds.), Paris.
B5: Dijkgraaf, E.; Vollebergh, H. (2004): Burn or bury? A social cost comparison of final waste disposal methods, Ecological Economics 50 (2004) 233– 247.
B6: DUAL Ports (2017), Green officer, www.dualports.eu [access 11.10.2017]
B7: European Central Bank (2017): MFI interest rate statistics, www.ecb.europa.eu, access 03.02.2017
B8: European Commission (2014): Guide to Cost-Benefit-Analysis of Investment Projects, Economic appraisal tool for Cohesion Policy 2014-2020, Brussels.
B9: European Environment Agency (1997): The Concept of Environmental Space - Implications for Policies, Environmental Reporting and Assessments, Copenhagen.
B10: European Investment Bank (2013): The Economic Appraisal of Investment Projects at the EIB, Projects Directorate, Luxemburg.
B11: European Investment Bank (2014): Induced GHG Footprint, Methodologies for the Assessment of Project GHG Emissions, Version 10.0, Luxemburg.
B12: Eurostat (2017): Diverse data, http://ec.europa.eu/eurostat/web/main/home [access 03.02.2017]
B13: Internationale Institut für Nachhaltigkeitsanalysen und -strategien (IINAS) (2017): GEMIS - Globales Emissions-Modell integrierter Systeme, Version 4.95, http://iinas.org [access 01.06.2017]
B14: Umweltbundesamt (2017): Prozessorientierte Basisdaten für Umweltmanagementsysteme, www.probas.umweltbundesamt.de [access 01.06.2017]

Sheet Imprint | Disclaimer
A1: Home ⌂
A2: Content & | B2: DUAL Ports - Developing Low carbon Utilities, Abilities and potential of regional entrepreneurial Ports
B3: Developing low carbon port potential: Cost benefit & carbon footprint analyses
B4: Dr. Malte Jahn and Dr. Jan Wedemeier
B5: Hamburg Institute of International Economics (HWWI) | 2018
B7: Corresponding author / Contact:
B9: Dr. Jan Wedemeier
B10: Hamburg Institute of International Economics (HWWI)
B11: Fahrenheitstr. 1
B12: 28359 Bremen | Germany
B13: Phone +49 (0)421-2208 – 243 | +49 (0)40-340576 – 663
B14: wedemeier@hwwi.org
B16: Hamburg Institute of International Economics (HWWI)
B17: Baumwall 7
B18: 20459 Hamburg | Germany
B19: Phone +49 (0)40-340576 – 0
B20: info@hwwi.org | www.hwwi.org
B22: © by the author(s) | D22: October 2018
B24: Disclaimer of liability
B25: The author(s) are solely responsible for the contents which do not necessarily represent the opinion of the HWWI
B26: The author(s) tried to ensure the validity and reliability of the sources and the information contained in this tool as good as possible. The author(s) is not responsibility for any errors or omissions, or for the results obtained from the use of this tool. All information in this tool is provided “as is” with no guarantees of completeness, accuracy, timeliness or of the results obtained from the use of this information.

Sheet Appendix - Input data
A1: Home ⌂
A2: Content & | B2: Appendix input data
B4: Public sector discount rate
B5: top ↑ | C5: Definition →
B6: Rate in %
B7: Recommended financial discount rate according to article 19 of Commission Delegated Regulation (EU) No 480/2014, for the programming period 2014-2020. | C7: 0
B8: Source: European Commission (2014)
B10: GHGe emissions
B11: top ↑
B12: Unit cost GHGe emissions in t
B13: Description / Application
B14: Cost of GHG emissions = VGHG*CGHG
B15: where: | C15: VGHG ist the incremental volume of GHG emissions produced by the project, expressed in CO2 equivalents
C16: CGHG is the damage cost of CO2
C17: Value 2010 (Euro/t-CO2e) | D17: Annual adders 2011-30 (in Euro)
B18: High | C18: 40 | D18: 2
B19: Central | C19: 25 | D19: 1
B20: Low | C20: 10 | D20: 0.5
B21: Source: European Commission (2014)
B23: Specific emissions from energy use (wihtout grid electricity) | C23: CO2e g/kWh | D23: CO2e t/kWh | E23: S g/kWh | F23: N g/kWh
B24: (truck) diesel | C24: =2975.64420801229/9.86 -> 301.7894734 | D24: =C24/10^6 -> 0.0003017894734 | E24: 0.001 | F24: 0.05
B25: marine diesel | C25: 301.7894734 | D25: =C25/10^6 -> 0.0003017894734 | E25: 0.1 | F25: 2
B26: gasoline | C26: =2695.58439498223/8.77 -> 307.3642412 | D26: 0.0003073642412 | E26: 0.001 | F26: 0.005
B27: heating oil | C27: 319.4297201 | D27: =C27/10^6 -> 0.0003194297201 | E27: 0.005 | F27: 0.12
B28: natural gas | C28: 249.9814593 | D28: =C28/10^6 -> 0.0002499814593 | E28: 0.0005 | F28: 0.08
B29: liquid gas | C29: 276.7276425 | D29: 0.0002767276425 | E29: 0 | F29: 0.08
B30: lignite | C30: 678.9523922 | D30: 0.0006789523922 | E30: 2 | F30: 1
B31: stone coal (brikets) | C31: 678.9523922 | D31: 0.0006789523922 | E31: 1 | F31: 1.4
B32: stone coal (koks) | C32: 441.3480776 | D32: 0.0004413480776 | E32: 0.8 | F32: 1.4
B33: wood (peaces) | C33: 18.89083385 | D33: 1.889083385e-05 | E33: 0 | F33: 0.3
B34: wood (pellets) | C34: 26.58944001 | D34: 2.658944001e-05 | E34: 0 | F34: 0.3
B35: hydropower | C35: 2.787132117 | D35: 2.787132117e-06 | E35: 0 | F35: 0
B36: geothermal | C36: 95.498166 | D36: 9.5498166e-05 | E36: 0 | F36: 0
B37: wind (onshore) | C37: 9.335092002 | D37: 9.335092002e-06 | E37: 0 | F37: 0
B38: solar | C38: =AVERAGE(60.8098095664209,48.5802085817093) -> 54.69500907 | D38: =C38/10^6 -> 5.469500907e-05 | E38: 0 | F38: 0
B39: Source: IINAS (2017) (for CO2)
E41: operation | I41: implementation | M41: indirect
B42: Conventional investment: Emissions | D42: CO2e [t] | E42: S [g] | F42: N [g] | H42: CO2e [t] | I42: S [g] | J42: N [g] | L42: CO2e [t] | M42: S [g] | N42: N [g]
B43: (truck) diesel | D43: =D24*'Externalities - Operation'!D15 -> 0 | E43: =E24*'Externalities - Operation'!D15 -> 0 | F43: =F24*'Externalities - Operation'!D15 -> 0 | H43: =D24*'Externalities - Implementation'!D15 -> 0 | I43: =E24*'Externalities - Implementation'!D15 -> 0 | J43: =F24*'Externalities - Implementation'!D15 -> 0 | L43: =D24*'Indirect Externalities'!D8 -> 0 | M43: =E24*'Indirect Externalities'!D8 -> 0 | N43: =F24*'Indirect Externalities'!D8 -> 0
B44: marine diesel | D44: =D25*'Externalities - Operation'!D16 -> 0 | E44: =E25*'Externalities - Operation'!D16 -> 0 | F44: =F25*'Externalities - Operation'!D16 -> 0 | H44: =D25*'Externalities - Implementation'!D16 -> 0 | I44: =E25*'Externalities - Implementation'!D16 -> 0 | J44: =F25*'Externalities - Implementation'!D16 -> 0 | L44: =D25*'Indirect Externalities'!D9 -> 0 | M44: =E25*'Indirect Externalities'!D9 -> 0 | N44: =F25*'Indirect Externalities'!D9 -> 0
B45: gasoline | D45: =D26*'Externalities - Operation'!D17 -> 0 | E45: =E26*'Externalities - Operation'!D17 -> 0 | F45: =F26*'Externalities - Operation'!D17 -> 0 | H45: =D26*'Externalities - Implementation'!D17 -> 0 | I45: =E26*'Externalities - Implementation'!D17 -> 0 | J45: =F26*'Externalities - Implementation'!D17 -> 0 | L45: =D26*'Indirect Externalities'!D10 -> 0 | M45: =E26*'Indirect Externalities'!D10 -> 0 | N45: =F26*'Indirect Externalities'!D10 -> 0
B46: heating oil | D46: =D27*'Externalities - Operation'!D18 -> 0 | E46: =E27*'Externalities - Operation'!D18 -> 0 | F46: =F27*'Externalities - Operation'!D18 -> 0 | H46: =D27*'Externalities - Implementation'!D18 -> 0 | I46: =E27*'Externalities - Implementation'!D18 -> 0 | J46: =F27*'Externalities - Implementation'!D18 -> 0 | L46: =D27*'Indirect Externalities'!D11 -> 0 | M46: =E27*'Indirect Externalities'!D11 -> 0 | N46: =F27*'Indirect Externalities'!D11 -> 0
B47: natural gas | D47: =D28*'Externalities - Operation'!D19 -> 0 | E47: =E28*'Externalities - Operation'!D19 -> 0 | F47: =F28*'Externalities - Operation'!D19 -> 0 | H47: =D28*'Externalities - Implementation'!D19 -> 0 | I47: =E28*'Externalities - Implementation'!D19 -> 0 | J47: =F28*'Externalities - Implementation'!D19 -> 0 | L47: =D28*'Indirect Externalities'!D12 -> 0 | M47: =E28*'Indirect Externalities'!D12 -> 0 | N47: =F28*'Indirect Externalities'!D12 -> 0
B48: liquid gas | D48: =D29*'Externalities - Operation'!D20 -> 0 | E48: =E29*'Externalities - Operation'!D20 -> 0 | F48: =F29*'Externalities - Operation'!D20 -> 0 | H48: =D29*'Externalities - Implementation'!D20 -> 0 | I48: =E29*'Externalities - Implementation'!D20 -> 0 | J48: =F29*'Externalities - Implementation'!D20 -> 0 | L48: =D29*'Indirect Externalities'!D13 -> 0 | M48: =E29*'Indirect Externalities'!D13 -> 0 | N48: =F29*'Indirect Externalities'!D13 -> 0
B49: lignite | D49: =D30*'Externalities - Operation'!D21 -> 0 | E49: =E30*'Externalities - Operation'!D21 -> 0 | F49: =F30*'Externalities - Operation'!D21 -> 0 | H49: =D30*'Externalities - Implementation'!D21 -> 0 | I49: =E30*'Externalities - Implementation'!D21 -> 0 | J49: =F30*'Externalities - Implementation'!D21 -> 0 | L49: =D30*'Indirect Externalities'!D14 -> 0 | M49: =E30*'Indirect Externalities'!D14 -> 0 | N49: =F30*'Indirect Externalities'!D14 -> 0
B50: stone coal (brikets) | D50: =D31*'Externalities - Operation'!D22 -> 0 | E50: =E31*'Externalities - Operation'!D22 -> 0 | F50: =F31*'Externalities - Operation'!D22 -> 0 | H50: =D31*'Externalities - Implementation'!D22 -> 0 | I50: =E31*'Externalities - Implementation'!D22 -> 0 | J50: =F31*'Externalities - Implementation'!D22 -> 0 | L50: =D31*'Indirect Externalities'!D15 -> 0 | M50: =E31*'Indirect Externalities'!D15 -> 0 | N50: =F31*'Indirect Externalities'!D15 -> 0
B51: stone coal (koks) | D51: =D32*'Externalities - Operation'!D23 -> 0 | E51: =E32*'Externalities - Operation'!D23 -> 0 | F51: =F32*'Externalities - Operation'!D23 -> 0 | H51: =D32*'Externalities - Implementation'!D23 -> 0 | I51: =E32*'Externalities - Implementation'!D23 -> 0 | J51: =F32*'Externalities - Implementation'!D23 -> 0 | L51: =D32*'Indirect Externalities'!D16 -> 0 | M51: =E32*'Indirect Externalities'!D16 -> 0 | N51: =F32*'Indirect Externalities'!D16 -> 0
B52: wood (peaces) | D52: =D33*'Externalities - Operation'!D24 -> 0 | E52: =E33*'Externalities - Operation'!D24 -> 0 | F52: =F33*'Externalities - Operation'!D24 -> 0 | H52: =D33*'Externalities - Implementation'!D24 -> 0 | I52: =E33*'Externalities - Implementation'!D24 -> 0 | J52: =F33*'Externalities - Implementation'!D24 -> 0 | L52: =D33*'Indirect Externalities'!D17 -> 0 | M52: =E33*'Indirect Externalities'!D17 -> 0 | N52: =F33*'Indirect Externalities'!D17 -> 0
B53: wood (pellets) | D53: =D34*'Externalities - Operation'!D25 -> 0 | E53: =E34*'Externalities - Operation'!D25 -> 0 | F53: =F34*'Externalities - Operation'!D25 -> 0 | H53: =D34*'Externalities - Implementation'!D25 -> 0 | I53: =E34*'Externalities - Implementation'!D25 -> 0 | J53: =F34*'Externalities - Implementation'!D25 -> 0 | L53: =D34*'Indirect Externalities'!D18 -> 0 | M53: =E34*'Indirect Externalities'!D18 -> 0 | N53: =F34*'Indirect Externalities'!D18 -> 0
B54: hydropower | D54: =C35*'Externalities - Operation'!D10 -> 0 | E54: =E35*'Externalities - Operation'!D10 -> 0 | F54: =F35*'Externalities - Operation'!D10 -> 0 | H54: =D35*'Externalities - Implementation'!D10 -> 0 | I54: =E35*'Externalities - Implementation'!D10 -> 0 | J54: =F35*'Externalities - Implementation'!D10 -> 0
B55: geothermal | D55: =C36*'Externalities - Operation'!D11 -> 0 | E55: =E36*'Externalities - Operation'!D11 -> 0 | F55: =F36*'Externalities - Operation'!D11 -> 0 | H55: =D36*'Externalities - Implementation'!D11 -> 0 | I55: =E36*'Externalities - Implementation'!D11 -> 0 | J55: =F36*'Externalities - Implementation'!D11 -> 0
B56: wind (onshore) | D56: =C37*'Externalities - Operation'!D12 -> 0 | E56: =E37*'Externalities - Operation'!D12 -> 0 | F56: =F37*'Externalities - Operation'!D12 -> 0 | H56: =D37*'Externalities - Implementation'!D12 -> 0 | I56: =E37*'Externalities - Implementation'!D12 -> 0 | J56: =F37*'Externalities - Implementation'!D12 -> 0
B57: solar | D57: =C38*'Externalities - Operation'!D13 -> 0 | E57: =E38*'Externalities - Operation'!D13 -> 0 | F57: =F38*'Externalities - Operation'!D13 -> 0 | H57: =D38*'Externalities - Implementation'!D13 -> 0 | I57: =E38*'Externalities - Implementation'!D13 -> 0 | J57: =F38*'Externalities - Implementation'!D13 -> 0
C58: total | D58: =SUM(D43:D57) -> 0 | E58: =SUM(E43:E57) -> 0 | F58: 0 | H58: =SUM(H43:H57) -> 0 | I58: =SUM(I43:I57) -> 0 | J58: =SUM(J43:J57) -> 0 | L58: =SUM(L43:L57) -> 0 | M58: =SUM(M43:M57) -> 0 | N58: =SUM(N43:N57) -> 0
E60: operation | I60: implementation | M60: indirect
B61: Green investment: Emissions | D61: CO2e [t] | E61: S [g] | F61: N [g] | H61: CO2e [t] | I61: S [g] | J61: N [g] | L61: CO2e [t] | M61: S [g] | N61: N [g]
B62: (truck) diesel | D62: =D24*'Externalities - Operation'!E15 -> 0 | E62: =E24*'Externalities - Operation'!E15 -> 0 | F62: =F24*'Externalities - Operation'!E15 -> 0 | H62: =D24*'Externalities - Implementation'!E15 -> 0 | I62: =E24*'Externalities - Implementation'!E15 -> 0 | J62: =F24*'Externalities - Implementation'!E15 -> 0 | L62: =D24*'Indirect Externalities'!E8 -> 0 | M62: =E24*'Indirect Externalities'!E8 -> 0 | N62: =F24*'Indirect Externalities'!E8 -> 0
B63: marine diesel | D63: =D25*'Externalities - Operation'!E16 -> 0 | E63: =E25*'Externalities - Operation'!E16 -> 0 | F63: =F25*'Externalities - Operation'!E16 -> 0 | H63: =D25*'Externalities - Implementation'!E16 -> 0 | I63: =E25*'Externalities - Implementation'!E16 -> 0 | J63: =F25*'Externalities - Implementation'!E16 -> 0 | L63: =D25*'Indirect Externalities'!E9 -> 0 | M63: =E25*'Indirect Externalities'!E9 -> 0 | N63: =F25*'Indirect Externalities'!E9 -> 0
B64: gasoline | D64: =D26*'Externalities - Operation'!E17 -> 0 | E64: =E26*'Externalities - Operation'!E17 -> 0 | F64: =F26*'Externalities - Operation'!E17 -> 0 | H64: =D26*'Externalities - Implementation'!E17 -> 0 | I64: =E26*'Externalities - Implementation'!E17 -> 0 | J64: =F26*'Externalities - Implementation'!E17 -> 0 | L64: =D26*'Indirect Externalities'!E10 -> 0 | M64: =E26*'Indirect Externalities'!E10 -> 0 | N64: =F26*'Indirect Externalities'!E10 -> 0
B65: heating oil | D65: =D27*'Externalities - Operation'!E18 -> 0 | E65: =E27*'Externalities - Operation'!E18 -> 0 | F65: =F27*'Externalities - Operation'!E18 -> 0 | H65: =D27*'Externalities - Implementation'!E18 -> 0 | I65: =E27*'Externalities - Implementation'!E18 -> 0 | J65: =F27*'Externalities - Implementation'!E18 -> 0 | L65: =D27*'Indirect Externalities'!E11 -> 0 | M65: =E27*'Indirect Externalities'!E11 -> 0 | N65: =F27*'Indirect Externalities'!E11 -> 0
B66: natural gas | D66: =D28*'Externalities - Operation'!E19 -> 0 | E66: =E28*'Externalities - Operation'!E19 -> 0 | F66: =F28*'Externalities - Operation'!E19 -> 0 | H66: =D28*'Externalities - Implementation'!E19 -> 0 | I66: =E28*'Externalities - Implementation'!E19 -> 0 | J66: =F28*'Externalities - Implementation'!E19 -> 0 | L66: =D28*'Indirect Externalities'!E12 -> 0 | M66: =E28*'Indirect Externalities'!E12 -> 0 | N66: =F28*'Indirect Externalities'!E12 -> 0
B67: liquid gas | D67: =D29*'Externalities - Operation'!E20 -> 0 | E67: =E29*'Externalities - Operation'!E20 -> 0 | F67: =F29*'Externalities - Operation'!E20 -> 0 | H67: =D29*'Externalities - Implementation'!E20 -> 0 | I67: =E29*'Externalities - Implementation'!E20 -> 0 | J67: =F29*'Externalities - Implementation'!E20 -> 0 | L67: =D29*'Indirect Externalities'!E13 -> 0 | M67: =E29*'Indirect Externalities'!E13 -> 0 | N67: =F29*'Indirect Externalities'!E13 -> 0
B68: lignite | D68: =D30*'Externalities - Operation'!E21 -> 0 | E68: =E30*'Externalities - Operation'!E21 -> 0 | F68: =F30*'Externalities - Operation'!E21 -> 0 | H68: =D30*'Externalities - Implementation'!E21 -> 0 | I68: =E30*'Externalities - Implementation'!E21 -> 0 | J68: =F30*'Externalities - Implementation'!E21 -> 0 | L68: =D30*'Indirect Externalities'!E14 -> 0 | M68: =E30*'Indirect Externalities'!E14 -> 0 | N68: =F30*'Indirect Externalities'!E14 -> 0
B69: stone coal (brikets) | D69: =D31*'Externalities - Operation'!E22 -> 0 | E69: =E31*'Externalities - Operation'!E22 -> 0 | F69: =F31*'Externalities - Operation'!E22 -> 0 | H69: =D31*'Externalities - Implementation'!E22 -> 0 | I69: =E31*'Externalities - Implementation'!E22 -> 0 | J69: =F31*'Externalities - Implementation'!E22 -> 0 | L69: =D31*'Indirect Externalities'!E15 -> 0 | M69: =E31*'Indirect Externalities'!E15 -> 0 | N69: =F31*'Indirect Externalities'!E15 -> 0
B70: stone coal (koks) | D70: =D32*'Externalities - Operation'!E23 -> 0 | E70: =E32*'Externalities - Operation'!E23 -> 0 | F70: =F32*'Externalities - Operation'!E23 -> 0 | H70: =D32*'Externalities - Implementation'!E23 -> 0 | I70: =E32*'Externalities - Implementation'!E23 -> 0 | J70: =F32*'Externalities - Implementation'!E23 -> 0 | L70: =D32*'Indirect Externalities'!E16 -> 0 | M70: =E32*'Indirect Externalities'!E16 -> 0 | N70: =F32*'Indirect Externalities'!E16 -> 0
B71: wood (peaces) | D71: =D33*'Externalities - Operation'!E24 -> 0 | E71: =E33*'Externalities - Operation'!E24 -> 0 | F71: =F33*'Externalities - Operation'!E24 -> 0 | H71: =D33*'Externalities - Implementation'!E24 -> 0 | I71: =E33*'Externalities - Implementation'!E24 -> 0 | J71: =F33*'Externalities - Implementation'!E24 -> 0 | L71: =D33*'Indirect Externalities'!E17 -> 0 | M71: =E33*'Indirect Externalities'!E17 -> 0 | N71: =F33*'Indirect Externalities'!E17 -> 0
B72: wood (pellets) | D72: =D34*'Externalities - Operation'!E25 -> 0 | E72: =E34*'Externalities - Operation'!E25 -> 0 | F72: =F34*'Externalities - Operation'!E25 -> 0 | H72: =D34*'Externalities - Implementation'!E25 -> 0 | I72: =E34*'Externalities - Implementation'!E25 -> 0 | J72: =F34*'Externalities - Implementation'!E25 -> 0 | L72: =D34*'Indirect Externalities'!E18 -> 0 | M72: =E34*'Indirect Externalities'!E18 -> 0 | N72: =F34*'Indirect Externalities'!E18 -> 0
B73: hydropower | D73: =D35*'Externalities - Operation'!E10 -> 0 | E73: =E35*'Externalities - Operation'!E10 -> 0 | F73: =F35*'Externalities - Operation'!E10 -> 0 | H73: =D35*'Externalities - Implementation'!E10 -> 0 | I73: =E35*'Externalities - Implementation'!E10 -> 0 | J73: =F35*'Externalities - Implementation'!E10 -> 0
B74: geothermal | D74: =D36*'Externalities - Operation'!E11 -> 0 | E74: =E36*'Externalities - Operation'!E11 -> 0 | F74: =F36*'Externalities - Operation'!E11 -> 0 | H74: =D36*'Externalities - Implementation'!E11 -> 0 | I74: =E36*'Externalities - Implementation'!E11 -> 0 | J74: =F36*'Externalities - Implementation'!E11 -> 0
B75: wind (onshore) | D75: =D37*'Externalities - Operation'!E12 -> 0 | E75: =E37*'Externalities - Operation'!E12 -> 0 | F75: =F37*'Externalities - Operation'!E12 -> 0 | H75: =D37*'Externalities - Implementation'!E12 -> 0 | I75: =E37*'Externalities - Implementation'!E12 -> 0 | J75: =F37*'Externalities - Implementation'!E12 -> 0
B76: solar | D76: =D38*'Externalities - Operation'!E13 -> 0 | E76: =E38*'Externalities - Operation'!E13 -> 0 | F76: =F38*'Externalities - Operation'!E13 -> 0 | H76: =D38*'Externalities - Implementation'!E13 -> 0 | I76: =E38*'Externalities - Implementation'!E13 -> 0 | J76: =F38*'Externalities - Implementation'!E13 -> 0
C77: total | D77: =SUM(D62:D76) -> 0 | E77: =SUM(E62:E76) -> 0 | F77: =SUM(F62:F76) -> 0 | H77: =SUM(H62:H76) -> 0 | I77: =SUM(I62:I76) -> 0 | J77: =SUM(J62:J76) -> 0 | L77: =SUM(L62:L76) -> 0 | M77: =SUM(M62:M76) -> 0 | N77: =SUM(N62:N76) -> 0
B79: Purchased electricity: country grid emission factos
G80: country | H80: Grid emission factor
B81: Conversion factor in t CO2 | G81: Belgium | H81: 237
B82: in t CO2/ kWh | E82: =VLOOKUP(Description!C7,'Appendix - Input data'!$G$81:$H$87,2,FALSE)/1000000 -> 0.000237 | G82: Denmark | H82: 401
B83: adjusted for share of green grid electricity | E83: =IF('Externalities - Implementation'!D8>0,(1-'Externalities - Implementation'!D8)*E82+0.000025,E82) -> 0.000237 | G83: Germany | H83: 527
B84: Operating emissions from grid electricity (t CO2/a) | G84: Netherlands | H84: 462
B85: operation: conventional investment | E85: =E83*'Externalities - Operation'!D7 -> 0 | G85: Sweden | H85: 274
B86: operation: green investment | E86: =E83*'Externalities - Operation'!E7 -> 0 | G86: United Kingdom | H86: 504
B87: Implementation emissions from grid electrictiy (t CO2) | G87: EU27 | H87: 328
B88: implementation: conventional investment | E88: =E83*'Externalities - Implementation'!D7 -> 0 | G88: Source: EIB (2014)
B89: implementation: green investment | E89: =E83*'Externalities - Implementation'!E7 -> 0
B90: Source: EIB (2014)
C94: =Description!C8 -> 2017 | D94: =C94+1 -> 2018 | E94: =D94+1 -> 2019 | F94: =E94+1 -> 2020 | G94: =F94+1 -> 2021 | H94: =G94+1 -> 2022 | I94: =H94+1 -> 2023 | J94: 2024 | K94: =J94+1 -> 2025 | L94: 2026 | M94: 2027 | N94: 2028 | O94: 2029 | P94: 2030 | Q94: 2031 | R94: 2032 | S94: 2033 | T94: 2034 | U94: 2035 | V94: 2036 | W94: 2037 | X94: 2038 | Y94: 2039 | Z94: 2040 | AA94: 2041 | AB94: 2042 | AC94: 2043 | AD94: 2044 | AE94: 2045 | AF94: 2046 | AG94: 2047 | AH94: 2048 | AI94: 2049 | AJ94: 2050 | AK94: 2051 | AL94: 2052 | AM94: 2053 | AN94: 2054 | AO94: 2055 | AP94: 2056 | AQ94: 2057 | AR94: 2058 | AS94: 2059 | AT94: 2060 | AU94: 2061 | AV94: 2062 | AW94: 2063 | AX94: 2064 | AY94: 2065 | AZ94: 2066 | BA94: =AZ94+1 -> 2067 | BB94: =BA94+1 -> 2068 | BC94: =BB94+1 -> 2069 | BD94: =BC94+1 -> 2070 | BE94: =BD94+1 -> 2071
B95: Social cost of CO2 (Euro/t-CO2e) | C95: =MIN(C94-1985,45) -> 32 | D95: =MIN(D94-1985,45) -> 33 | E95: 34 | F95: 35 | G95: 36 | H95: 37 | I95: 38 | J95: 39 | K95: 40 | L95: 41 | M95: 42 | N95: 43 | O95: 44 | P95: 45 | Q95: 45 | R95: 45 | S95: 45 | T95: 45 | U95: 45 | V95: 45 | W95: 45 | X95: 45 | Y95: 45 | Z95: 45 | AA95: 45 | AB95: 45 | AC95: 45 | AD95: 45 | AE95: 45 | AF95: 45 | AG95: 45 | AH95: 45 | AI95: 45 | AJ95: 45 | AK95: 45 | AL95: 45 | AM95: 45 | AN95: 45 | AO95: 45 | AP95: 45 | AQ95: 45 | AR95: 45 | AS95: 45 | AT95: 45 | AU95: 45 | AV95: 45 | AW95: 45 | AX95: 45 | AY95: 45 | AZ95: 45 | BA95: 45 | BB95: 45 | BC95: 45 | BD95: 45 | BE95: 45
B97: Operation: CO2 costs in Euro/a
B98: Conventional investment | C98: =IF('Operating results'!$D$6>0,($D$58+$E$85)*C95,0) -> 0 | D98: =IF('Operating results'!$D$6>0,($D$58+$E$85)*D95,0) -> 0 | E98: =IF('Operating results'!$D$6>0,($D$58+$E$85)*E95,0) -> 0 | F98: =IF('Operating results'!$D$6>0,($D$58+$E$85)*F95,0) -> 0 | G98: =IF('Operating results'!$D$6>0,($D$58+$E$85)*G95,0) -> 0 | H98: =IF('Operating results'!$D$6>0,($D$58+$E$85)*H95,0) -> 0 | I98: =IF('Operating results'!$D$6>0,($D$58+$E$85)*I95,0) -> 0 | J98: =IF('Operating results'!$D$6>0,($D$58+$E$85)*J95,0) -> 0 | K98: =IF('Operating results'!$D$6>0,($D$58+$E$85)*K95,0) -> 0 | L98: =IF('Operating results'!$D$6>0,($D$58+$E$85)*L95,0) -> 0 | M98: =IF('Operating results'!$D$6>0,($D$58+$E$85)*M95,0) -> 0 | N98: =IF('Operating results'!$D$6>0,($D$58+$E$85)*N95,0) -> 0 | O98: =IF('Operating results'!$D$6>0,($D$58+$E$85)*O95,0) -> 0 | P98: =IF('Operating results'!$D$6>0,($D$58+$E$85)*P95,0) -> 0 | Q98: =IF('Operating results'!$D$6>0,($D$58+$E$85)*Q95,0) -> 0 | R98: =IF('Operating results'!$D$6>0,($D$58+$E$85)*R95,0) -> 0 | S98: =IF('Operating results'!$D$6>0,($D$58+$E$85)*S95,0) -> 0 | T98: =IF('Operating results'!$D$6>0,($D$58+$E$85)*T95,0) -> 0 | U98: =IF('Operating results'!$D$6>0,($D$58+$E$85)*U95,0) -> 0 | V98: =IF('Operating results'!$D$6>0,($D$58+$E$85)*V95,0) -> 0 | W98: =IF('Operating results'!$D$6>0,($D$58+$E$85)*W95,0) -> 0 | X98: =IF('Operating results'!$D$6>0,($D$58+$E$85)*X95,0) -> 0 | Y98: =IF('Operating results'!$D$6>0,($D$58+$E$85)*Y95,0) -> 0 | Z98: =IF('Operating results'!$D$6>0,($D$58+$E$85)*Z95,0) -> 0 | AA98: =IF('Operating results'!$D$6>0,($D$58+$E$85)*AA95,0) -> 0 | AB98: =IF('Operating results'!$D$6>0,($D$58+$E$85)*AB95,0) -> 0 | AC98: =IF('Operating results'!$D$6>0,($D$58+$E$85)*AC95,0) -> 0 | AD98: =IF('Operating results'!$D$6>0,($D$58+$E$85)*AD95,0) -> 0 | AE98: =IF('Operating results'!$D$6>0,($D$58+$E$85)*AE95,0) -> 0 | AF98: =IF('Operating results'!$D$6>0,($D$58+$E$85)*AF95,0) -> 0 | AG98: =IF('Operating results'!$D$6>0,($D$58+$E$85)*AG95,0) -> 0 | AH98: =IF('Operating results'!$D$6>0,($D$58+$E$85)*AH95,0) -> 0 | AI98: =IF('Operating results'!$D$6>0,($D$58+$E$85)*AI95,0) -> 0 | AJ98: =IF('Operating results'!$D$6>0,($D$58+$E$85)*AJ95,0) -> 0 | AK98: =IF('Operating results'!$D$6>0,($D$58+$E$85)*AK95,0) -> 0 | AL98: =IF('Operating results'!$D$6>0,($D$58+$E$85)*AL95,0) -> 0 | AM98: =IF('Operating results'!$D$6>0,($D$58+$E$85)*AM95,0) -> 0 | AN98: =IF('Operating results'!$D$6>0,($D$58+$E$85)*AN95,0) -> 0 | AO98: =IF('Operating results'!$D$6>0,($D$58+$E$85)*AO95,0) -> 0 | AP98: =IF('Operating results'!$D$6>0,($D$58+$E$85)*AP95,0) -> 0 | AQ98: =IF('Operating results'!$D$6>0,($D$58+$E$85)*AQ95,0) -> 0 | AR98: =IF('Operating results'!$D$6>0,($D$58+$E$85)*AR95,0) -> 0 | AS98: =IF('Operating results'!$D$6>0,($D$58+$E$85)*AS95,0) -> 0 | AT98: =IF('Operating results'!$D$6>0,($D$58+$E$85)*AT95,0) -> 0 | AU98: =IF('Operating results'!$D$6>0,($D$58+$E$85)*AU95,0) -> 0 | AV98: =IF('Operating results'!$D$6>0,($D$58+$E$85)*AV95,0) -> 0 | AW98: =IF('Operating results'!$D$6>0,($D$58+$E$85)*AW95,0) -> 0 | AX98: =IF('Operating results'!$D$6>0,($D$58+$E$85)*AX95,0) -> 0 | AY98: =IF('Operating results'!$D$6>0,($D$58+$E$85)*AY95,0) -> 0 | AZ98: =IF('Operating results'!$D$6>0,($D$58+$E$85)*AZ95,0) -> 0 | BA98: =IF('Operating results'!$D$6>0,($D$58+$E$85)*BA95,0) -> 0 | BB98: =IF('Operating results'!$D$6>0,($D$58+$E$85)*BB95,0) -> 0 | BC98: =IF('Operating results'!$D$6>0,($D$58+$E$85)*BC95,0) -> 0 | BD98: =IF('Operating results'!$D$6>0,($D$58+$E$85)*BD95,0) -> 0 | BE98: =IF('Operating results'!$D$6>0,($D$58+$E$85)*BE95,0) -> 0
B99: Green investment | C99: =IF('Operating results'!$E$6>0,($D$77+$E$86)*C95,0) -> 0 | D99: =IF('Operating results'!$E$6>0,($D$77+$E$86)*D95,0) -> 0 | E99: =IF('Operating results'!$E$6>0,($D$77+$E$86)*E95,0) -> 0 | F99: =IF('Operating results'!$E$6>0,($D$77+$E$86)*F95,0) -> 0 | G99: =IF('Operating results'!$E$6>0,($D$77+$E$86)*G95,0) -> 0 | H99: =IF('Operating results'!$E$6>0,($D$77+$E$86)*H95,0) -> 0 | I99: =IF('Operating results'!$E$6>0,($D$77+$E$86)*I95,0) -> 0 | J99: =IF('Operating results'!$E$6>0,($D$77+$E$86)*J95,0) -> 0 | K99: =IF('Operating results'!$E$6>0,($D$77+$E$86)*K95,0) -> 0 | L99: =IF('Operating results'!$E$6>0,($D$77+$E$86)*L95,0) -> 0 | M99: =IF('Operating results'!$E$6>0,($D$77+$E$86)*M95,0) -> 0 | N99: =IF('Operating results'!$E$6>0,($D$77+$E$86)*N95,0) -> 0 | O99: =IF('Operating results'!$E$6>0,($D$77+$E$86)*O95,0) -> 0 | P99: =IF('Operating results'!$E$6>0,($D$77+$E$86)*P95,0) -> 0 | Q99: =IF('Operating results'!$E$6>0,($D$77+$E$86)*Q95,0) -> 0 | R99: =IF('Operating results'!$E$6>0,($D$77+$E$86)*R95,0) -> 0 | S99: =IF('Operating results'!$E$6>0,($D$77+$E$86)*S95,0) -> 0 | T99: =IF('Operating results'!$E$6>0,($D$77+$E$86)*T95,0) -> 0 | U99: =IF('Operating results'!$E$6>0,($D$77+$E$86)*U95,0) -> 0 | V99: =IF('Operating results'!$E$6>0,($D$77+$E$86)*V95,0) -> 0 | W99: =IF('Operating results'!$E$6>0,($D$77+$E$86)*W95,0) -> 0 | X99: =IF('Operating results'!$E$6>0,($D$77+$E$86)*X95,0) -> 0 | Y99: =IF('Operating results'!$E$6>0,($D$77+$E$86)*Y95,0) -> 0 | Z99: =IF('Operating results'!$E$6>0,($D$77+$E$86)*Z95,0) -> 0 | AA99: =IF('Operating results'!$E$6>0,($D$77+$E$86)*AA95,0) -> 0 | AB99: =IF('Operating results'!$E$6>0,($D$77+$E$86)*AB95,0) -> 0 | AC99: =IF('Operating results'!$E$6>0,($D$77+$E$86)*AC95,0) -> 0 | AD99: =IF('Operating results'!$E$6>0,($D$77+$E$86)*AD95,0) -> 0 | AE99: =IF('Operating results'!$E$6>0,($D$77+$E$86)*AE95,0) -> 0 | AF99: =IF('Operating results'!$E$6>0,($D$77+$E$86)*AF95,0) -> 0 | AG99: =IF('Operating results'!$E$6>0,($D$77+$E$86)*AG95,0) -> 0 | AH99: =IF('Operating results'!$E$6>0,($D$77+$E$86)*AH95,0) -> 0 | AI99: =IF('Operating results'!$E$6>0,($D$77+$E$86)*AI95,0) -> 0 | AJ99: =IF('Operating results'!$E$6>0,($D$77+$E$86)*AJ95,0) -> 0 | AK99: =IF('Operating results'!$E$6>0,($D$77+$E$86)*AK95,0) -> 0 | AL99: =IF('Operating results'!$E$6>0,($D$77+$E$86)*AL95,0) -> 0 | AM99: =IF('Operating results'!$E$6>0,($D$77+$E$86)*AM95,0) -> 0 | AN99: =IF('Operating results'!$E$6>0,($D$77+$E$86)*AN95,0) -> 0 | AO99: =IF('Operating results'!$E$6>0,($D$77+$E$86)*AO95,0) -> 0 | AP99: =IF('Operating results'!$E$6>0,($D$77+$E$86)*AP95,0) -> 0 | AQ99: =IF('Operating results'!$E$6>0,($D$77+$E$86)*AQ95,0) -> 0 | AR99: =IF('Operating results'!$E$6>0,($D$77+$E$86)*AR95,0) -> 0 | AS99: =IF('Operating results'!$E$6>0,($D$77+$E$86)*AS95,0) -> 0 | AT99: =IF('Operating results'!$E$6>0,($D$77+$E$86)*AT95,0) -> 0 | AU99: =IF('Operating results'!$E$6>0,($D$77+$E$86)*AU95,0) -> 0 | AV99: =IF('Operating results'!$E$6>0,($D$77+$E$86)*AV95,0) -> 0 | AW99: =IF('Operating results'!$E$6>0,($D$77+$E$86)*AW95,0) -> 0 | AX99: =IF('Operating results'!$E$6>0,($D$77+$E$86)*AX95,0) -> 0 | AY99: =IF('Operating results'!$E$6>0,($D$77+$E$86)*AY95,0) -> 0 | AZ99: =IF('Operating results'!$E$6>0,($D$77+$E$86)*AZ95,0) -> 0 | BA99: =IF('Operating results'!$E$6>0,($D$77+$E$86)*BA95,0) -> 0 | BB99: =IF('Operating results'!$E$6>0,($D$77+$E$86)*BB95,0) -> 0 | BC99: =IF('Operating results'!$E$6>0,($D$77+$E$86)*BC95,0) -> 0 | BD99: =IF('Operating results'!$E$6>0,($D$77+$E$86)*BD95,0) -> 0 | BE99: =IF('Operating results'!$E$6>0,($D$77+$E$86)*BE95,0) -> 0
B101: Indirect: CO2 costs in Euro/a
B102: Conventional investment | C102: =C95*$L$58 -> 0 | D102: =D95*$L$58 -> 0 | E102: 0 | F102: 0 | G102: 0 | H102: 0 | I102: 0 | J102: 0 | K102: 0 | L102: 0 | M102: 0 | N102: 0 | O102: 0 | P102: 0 | Q102: 0 | R102: 0 | S102: 0 | T102: 0 | U102: 0 | V102: 0 | W102: 0 | X102: 0 | Y102: 0 | Z102: 0 | AA102: 0 | AB102: 0 | AC102: 0 | AD102: 0 | AE102: 0 | AF102: 0 | AG102: 0 | AH102: 0 | AI102: 0 | AJ102: 0 | AK102: 0 | AL102: 0 | AM102: 0 | AN102: 0 | AO102: 0 | AP102: 0 | AQ102: 0 | AR102: 0 | AS102: 0 | AT102: 0 | AU102: 0 | AV102: 0 | AW102: 0 | AX102: 0 | AY102: 0 | AZ102: 0 | BA102: 0 | BB102: 0 | BC102: 0 | BD102: 0 | BE102: 0
B103: Green investment | C103: =C95*$L$77 -> 0 | D103: =D95*$L$77 -> 0 | E103: 0 | F103: 0 | G103: 0 | H103: 0 | I103: 0 | J103: 0 | K103: 0 | L103: 0 | M103: 0 | N103: 0 | O103: 0 | P103: 0 | Q103: 0 | R103: 0 | S103: 0 | T103: 0 | U103: 0 | V103: 0 | W103: 0 | X103: 0 | Y103: 0 | Z103: 0 | AA103: 0 | AB103: 0 | AC103: 0 | AD103: 0 | AE103: 0 | AF103: 0 | AG103: 0 | AH103: 0 | AI103: 0 | AJ103: 0 | AK103: 0 | AL103: 0 | AM103: 0 | AN103: 0 | AO103: 0 | AP103: 0 | AQ103: 0 | AR103: 0 | AS103: 0 | AT103: 0 | AU103: 0 | AV103: 0 | AW103: 0 | AX103: 0 | AY103: 0 | AZ103: 0 | BA103: 0 | BB103: 0 | BC103: 0 | BD103: 0 | BE103: 0
B105: Implementation: CO2 costs in Euro
B106: Conventional investment | D106: =($H$58+$E$88)*D95 -> 0
B107: Green investment | D107: =($H$77+$E$89)*D95 -> 0
B109: Waste treatment
B110: top ↑
B111: Landfill: Social costs of land use (Euro/t) | C111: 17.64
B112: Source: Dijkgraaf and Vollebergh (2004)
B114: Operation: Net external costs from waste treatment (Euro/a) | C114: =Description!C8 -> 2017 | D114: =C114+1 -> 2018 | E114: =D114+1 -> 2019 | F114: =E114+1 -> 2020 | G114: =F114+1 -> 2021 | H114: =G114+1 -> 2022 | I114: =H114+1 -> 2023 | J114: 2024 | K114: =J114+1 -> 2025 | L114: 2026 | M114: 2027 | N114: 2028 | O114: 2029 | P114: 2030 | Q114: 2031 | R114: 2032 | S114: 2033 | T114: 2034 | U114: 2035 | V114: 2036 | W114: 2037 | X114: 2038 | Y114: 2039 | Z114: 2040 | AA114: 2041 | AB114: 2042 | AC114: 2043 | AD114: 2044 | AE114: 2045 | AF114: 2046 | AG114: 2047 | AH114: 2048 | AI114: 2049 | AJ114: 2050 | AK114: 2051 | AL114: 2052 | AM114: 2053 | AN114: 2054 | AO114: 2055 | AP114: 2056 | AQ114: 2057 | AR114: 2058 | AS114: 2059 | AT114: 2060 | AU114: 2061 | AV114: 2062 | AW114: 2063 | AX114: 2064 | AY114: 2065 | AZ114: 2066 | BA114: =AZ114+1 -> 2067 | BB114: =BA114+1 -> 2068 | BC114: =BB114+1 -> 2069 | BD114: =BC114+1 -> 2070 | BE114: =BD114+1 -> 2071
B115: Conventional investment | C115: =IF('Operating results'!$D$6>0,$C$111*'Externalities - Operation'!$D$33,0) -> 0 | D115: =IF('Operating results'!$D$6>0,$C$111*'Externalities - Operation'!$D$33,0) -> 0 | E115: =IF('Operating results'!$D$6>0,$C$111*'Externalities - Operation'!$D$33,0) -> 0 | F115: =IF('Operating results'!$D$6>0,$C$111*'Externalities - Operation'!$D$33,0) -> 0 | G115: =IF('Operating results'!$D$6>0,$C$111*'Externalities - Operation'!$D$33,0) -> 0 | H115: =IF('Operating results'!$D$6>0,$C$111*'Externalities - Operation'!$D$33,0) -> 0 | I115: =IF('Operating results'!$D$6>0,$C$111*'Externalities - Operation'!$D$33,0) -> 0 | J115: =IF('Operating results'!$D$6>0,$C$111*'Externalities - Operation'!$D$33,0) -> 0 | K115: =IF('Operating results'!$D$6>0,$C$111*'Externalities - Operation'!$D$33,0) -> 0 | L115: =IF('Operating results'!$D$6>0,$C$111*'Externalities - Operation'!$D$33,0) -> 0 | M115: =IF('Operating results'!$D$6>0,$C$111*'Externalities - Operation'!$D$33,0) -> 0 | N115: =IF('Operating results'!$D$6>0,$C$111*'Externalities - Operation'!$D$33,0) -> 0 | O115: =IF('Operating results'!$D$6>0,$C$111*'Externalities - Operation'!$D$33,0) -> 0 | P115: =IF('Operating results'!$D$6>0,$C$111*'Externalities - Operation'!$D$33,0) -> 0 | Q115: =IF('Operating results'!$D$6>0,$C$111*'Externalities - Operation'!$D$33,0) -> 0 | R115: =IF('Operating results'!$D$6>0,$C$111*'Externalities - Operation'!$D$33,0) -> 0 | S115: =IF('Operating results'!$D$6>0,$C$111*'Externalities - Operation'!$D$33,0) -> 0 | T115: =IF('Operating results'!$D$6>0,$C$111*'Externalities - Operation'!$D$33,0) -> 0 | U115: =IF('Operating results'!$D$6>0,$C$111*'Externalities - Operation'!$D$33,0) -> 0 | V115: =IF('Operating results'!$D$6>0,$C$111*'Externalities - Operation'!$D$33,0) -> 0 | W115: =IF('Operating results'!$D$6>0,$C$111*'Externalities - Operation'!$D$33,0) -> 0 | X115: =IF('Operating results'!$D$6>0,$C$111*'Externalities - Operation'!$D$33,0) -> 0 | Y115: =IF('Operating results'!$D$6>0,$C$111*'Externalities - Operation'!$D$33,0) -> 0 | Z115: =IF('Operating results'!$D$6>0,$C$111*'Externalities - Operation'!$D$33,0) -> 0 | AA115: =IF('Operating results'!$D$6>0,$C$111*'Externalities - Operation'!$D$33,0) -> 0 | AB115: =IF('Operating results'!$D$6>0,$C$111*'Externalities - Operation'!$D$33,0) -> 0 | AC115: =IF('Operating results'!$D$6>0,$C$111*'Externalities - Operation'!$D$33,0) -> 0 | AD115: =IF('Operating results'!$D$6>0,$C$111*'Externalities - Operation'!$D$33,0) -> 0 | AE115: =IF('Operating results'!$D$6>0,$C$111*'Externalities - Operation'!$D$33,0) -> 0 | AF115: =IF('Operating results'!$D$6>0,$C$111*'Externalities - Operation'!$D$33,0) -> 0 | AG115: =IF('Operating results'!$D$6>0,$C$111*'Externalities - Operation'!$D$33,0) -> 0 | AH115: =IF('Operating results'!$D$6>0,$C$111*'Externalities - Operation'!$D$33,0) -> 0 | AI115: =IF('Operating results'!$D$6>0,$C$111*'Externalities - Operation'!$D$33,0) -> 0 | AJ115: =IF('Operating results'!$D$6>0,$C$111*'Externalities - Operation'!$D$33,0) -> 0 | AK115: =IF('Operating results'!$D$6>0,$C$111*'Externalities - Operation'!$D$33,0) -> 0 | AL115: =IF('Operating results'!$D$6>0,$C$111*'Externalities - Operation'!$D$33,0) -> 0 | AM115: =IF('Operating results'!$D$6>0,$C$111*'Externalities - Operation'!$D$33,0) -> 0 | AN115: =IF('Operating results'!$D$6>0,$C$111*'Externalities - Operation'!$D$33,0) -> 0 | AO115: =IF('Operating results'!$D$6>0,$C$111*'Externalities - Operation'!$D$33,0) -> 0 | AP115: =IF('Operating results'!$D$6>0,$C$111*'Externalities - Operation'!$D$33,0) -> 0 | AQ115: =IF('Operating results'!$D$6>0,$C$111*'Externalities - Operation'!$D$33,0) -> 0 | AR115: =IF('Operating results'!$D$6>0,$C$111*'Externalities - Operation'!$D$33,0) -> 0 | AS115: =IF('Operating results'!$D$6>0,$C$111*'Externalities - Operation'!$D$33,0) -> 0 | AT115: =IF('Operating results'!$D$6>0,$C$111*'Externalities - Operation'!$D$33,0) -> 0 | AU115: =IF('Operating results'!$D$6>0,$C$111*'Externalities - Operation'!$D$33,0) -> 0 | AV115: =IF('Operating results'!$D$6>0,$C$111*'Externalities - Operation'!$D$33,0) -> 0 | AW115: =IF('Operating results'!$D$6>0,$C$111*'Externalities - Operation'!$D$33,0) -> 0 | AX115: =IF('Operating results'!$D$6>0,$C$111*'Externalities - Operation'!$D$33,0) -> 0 | AY115: =IF('Operating results'!$D$6>0,$C$111*'Externalities - Operation'!$D$33,0) -> 0 | AZ115: =IF('Operating results'!$D$6>0,$C$111*'Externalities - Operation'!$D$33,0) -> 0 | BA115: =IF('Operating results'!$D$6>0,$C$111*'Externalities - Operation'!$D$33,0) -> 0 | BB115: =IF('Operating results'!$D$6>0,$C$111*'Externalities - Operation'!$D$33,0) -> 0 | BC115: =IF('Operating results'!$D$6>0,$C$111*'Externalities - Operation'!$D$33,0) -> 0 | BD115: =IF('Operating results'!$D$6>0,$C$111*'Externalities - Operation'!$D$33,0) -> 0 | BE115: =IF('Operating results'!$D$6>0,$C$111*'Externalities - Operation'!$D$33,0) -> 0
B116: Green investment | C116: =IF('Operating results'!$E$6>0,C111*'Externalities - Operation'!$E$33,0) -> 0 | D116: =IF('Operating results'!$E$6>0,D111*'Externalities - Operation'!$E$33,0) -> 0 | E116: =IF('Operating results'!$E$6>0,E111*'Externalities - Operation'!$E$33,0) -> 0 | F116: =IF('Operating results'!$E$6>0,F111*'Externalities - Operation'!$E$33,0) -> 0 | G116: =IF('Operating results'!$E$6>0,G111*'Externalities - Operation'!$E$33,0) -> 0 | H116: =IF('Operating results'!$E$6>0,H111*'Externalities - Operation'!$E$33,0) -> 0 | I116: =IF('Operating results'!$E$6>0,I111*'Externalities - Operation'!$E$33,0) -> 0 | J116: =IF('Operating results'!$E$6>0,J111*'Externalities - Operation'!$E$33,0) -> 0 | K116: =IF('Operating results'!$E$6>0,K111*'Externalities - Operation'!$E$33,0) -> 0 | L116: =IF('Operating results'!$E$6>0,L111*'Externalities - Operation'!$E$33,0) -> 0 | M116: =IF('Operating results'!$E$6>0,M111*'Externalities - Operation'!$E$33,0) -> 0 | N116: =IF('Operating results'!$E$6>0,N111*'Externalities - Operation'!$E$33,0) -> 0 | O116: =IF('Operating results'!$E$6>0,O111*'Externalities - Operation'!$E$33,0) -> 0 | P116: =IF('Operating results'!$E$6>0,P111*'Externalities - Operation'!$E$33,0) -> 0 | Q116: =IF('Operating results'!$E$6>0,Q111*'Externalities - Operation'!$E$33,0) -> 0 | R116: =IF('Operating results'!$E$6>0,R111*'Externalities - Operation'!$E$33,0) -> 0 | S116: =IF('Operating results'!$E$6>0,S111*'Externalities - Operation'!$E$33,0) -> 0 | T116: =IF('Operating results'!$E$6>0,T111*'Externalities - Operation'!$E$33,0) -> 0 | U116: =IF('Operating results'!$E$6>0,U111*'Externalities - Operation'!$E$33,0) -> 0 | V116: =IF('Operating results'!$E$6>0,V111*'Externalities - Operation'!$E$33,0) -> 0 | W116: =IF('Operating results'!$E$6>0,W111*'Externalities - Operation'!$E$33,0) -> 0 | X116: =IF('Operating results'!$E$6>0,X111*'Externalities - Operation'!$E$33,0) -> 0 | Y116: =IF('Operating results'!$E$6>0,Y111*'Externalities - Operation'!$E$33,0) -> 0 | Z116: =IF('Operating results'!$E$6>0,Z111*'Externalities - Operation'!$E$33,0) -> 0 | AA116: =IF('Operating results'!$E$6>0,AA111*'Externalities - Operation'!$E$33,0) -> 0 | AB116: =IF('Operating results'!$E$6>0,AB111*'Externalities - Operation'!$E$33,0) -> 0 | AC116: =IF('Operating results'!$E$6>0,AC111*'Externalities - Operation'!$E$33,0) -> 0 | AD116: =IF('Operating results'!$E$6>0,AD111*'Externalities - Operation'!$E$33,0) -> 0 | AE116: =IF('Operating results'!$E$6>0,AE111*'Externalities - Operation'!$E$33,0) -> 0 | AF116: =IF('Operating results'!$E$6>0,AF111*'Externalities - Operation'!$E$33,0) -> 0 | AG116: =IF('Operating results'!$E$6>0,AG111*'Externalities - Operation'!$E$33,0) -> 0 | AH116: =IF('Operating results'!$E$6>0,AH111*'Externalities - Operation'!$E$33,0) -> 0 | AI116: =IF('Operating results'!$E$6>0,AI111*'Externalities - Operation'!$E$33,0) -> 0 | AJ116: =IF('Operating results'!$E$6>0,AJ111*'Externalities - Operation'!$E$33,0) -> 0 | AK116: =IF('Operating results'!$E$6>0,AK111*'Externalities - Operation'!$E$33,0) -> 0 | AL116: =IF('Operating results'!$E$6>0,AL111*'Externalities - Operation'!$E$33,0) -> 0 | AM116: =IF('Operating results'!$E$6>0,AM111*'Externalities - Operation'!$E$33,0) -> 0 | AN116: =IF('Operating results'!$E$6>0,AN111*'Externalities - Operation'!$E$33,0) -> 0 | AO116: =IF('Operating results'!$E$6>0,AO111*'Externalities - Operation'!$E$33,0) -> 0 | AP116: =IF('Operating results'!$E$6>0,AP111*'Externalities - Operation'!$E$33,0) -> 0 | AQ116: =IF('Operating results'!$E$6>0,AQ111*'Externalities - Operation'!$E$33,0) -> 0 | AR116: =IF('Operating results'!$E$6>0,AR111*'Externalities - Operation'!$E$33,0) -> 0 | AS116: =IF('Operating results'!$E$6>0,AS111*'Externalities - Operation'!$E$33,0) -> 0 | AT116: =IF('Operating results'!$E$6>0,AT111*'Externalities - Operation'!$E$33,0) -> 0 | AU116: =IF('Operating results'!$E$6>0,AU111*'Externalities - Operation'!$E$33,0) -> 0 | AV116: =IF('Operating results'!$E$6>0,AV111*'Externalities - Operation'!$E$33,0) -> 0 | AW116: =IF('Operating results'!$E$6>0,AW111*'Externalities - Operation'!$E$33,0) -> 0 | AX116: =IF('Operating results'!$E$6>0,AX111*'Externalities - Operation'!$E$33,0) -> 0 | AY116: =IF('Operating results'!$E$6>0,AY111*'Externalities - Operation'!$E$33,0) -> 0 | AZ116: =IF('Operating results'!$E$6>0,AZ111*'Externalities - Operation'!$E$33,0) -> 0 | BA116: =IF('Operating results'!$E$6>0,BA111*'Externalities - Operation'!$E$33,0) -> 0 | BB116: =IF('Operating results'!$E$6>0,BB111*'Externalities - Operation'!$E$33,0) -> 0 | BC116: =IF('Operating results'!$E$6>0,BC111*'Externalities - Operation'!$E$33,0) -> 0 | BD116: =IF('Operating results'!$E$6>0,BD111*'Externalities - Operation'!$E$33,0) -> 0 | BE116: =IF('Operating results'!$E$6>0,BE111*'Externalities - Operation'!$E$33,0) -> 0
B118: Implementation: Net external costs from waste treatment (Euro)
B119: Conventional investment | D119: =C111*'Externalities - Implementation'!D33 -> 0
B120: Green investment | D120: =C111*'Externalities - Implementation'!E33 -> 0
B122: Operating costs and revenues
B123: top ↑
C124: =Description!C8 -> 2017 | D124: =C124+1 -> 2018 | E124: =D124+1 -> 2019 | F124: =E124+1 -> 2020 | G124: =F124+1 -> 2021 | H124: =G124+1 -> 2022 | I124: =H124+1 -> 2023 | J124: =I124+1 -> 2024 | K124: =J124+1 -> 2025 | L124: =K124+1 -> 2026 | M124: =L124+1 -> 2027 | N124: =M124+1 -> 2028 | O124: =N124+1 -> 2029 | P124: =O124+1 -> 2030 | Q124: =P124+1 -> 2031 | R124: =Q124+1 -> 2032 | S124: =R124+1 -> 2033 | T124: =S124+1 -> 2034 | U124: =T124+1 -> 2035 | V124: =U124+1 -> 2036 | W124: =V124+1 -> 2037 | X124: =W124+1 -> 2038 | Y124: =X124+1 -> 2039 | Z124: =Y124+1 -> 2040 | AA124: =Z124+1 -> 2041 | AB124: =AA124+1 -> 2042 | AC124: =AB124+1 -> 2043 | AD124: =AC124+1 -> 2044 | AE124: =AD124+1 -> 2045 | AF124: =AE124+1 -> 2046 | AG124: =AF124+1 -> 2047 | AH124: =AG124+1 -> 2048 | AI124: =AH124+1 -> 2049 | AJ124: =AI124+1 -> 2050 | AK124: =AJ124+1 -> 2051 | AL124: =AK124+1 -> 2052 | AM124: =AL124+1 -> 2053 | AN124: =AM124+1 -> 2054 | AO124: =AN124+1 -> 2055 | AP124: =AO124+1 -> 2056 | AQ124: =AP124+1 -> 2057 | AR124: =AQ124+1 -> 2058 | AS124: =AR124+1 -> 2059 | AT124: =AS124+1 -> 2060 | AU124: =AT124+1 -> 2061 | AV124: =AU124+1 -> 2062 | AW124: =AV124+1 -> 2063 | AX124: =AW124+1 -> 2064 | AY124: =AX124+1 -> 2065 | AZ124: =AY124+1 -> 2066 | BA124: =AZ124+1 -> 2067 | BB124: =BA124+1 -> 2068 | BC124: =BB124+1 -> 2069 | BD124: =BC124+1 -> 2070 | BE124: =BD124+1 -> 2071
B125: Conventional investment
B126: Operating revenue | C126: =IF('Operating results'!$D$6>0,'Operating results'!$D$7,0) -> 0 | D126: =IF('Operating results'!$D$6>0,'Operating results'!$D$7,0) -> 0 | E126: =IF('Operating results'!$D$6>0,'Operating results'!$D$7,0) -> 0 | F126: =IF('Operating results'!$D$6>0,'Operating results'!$D$7,0) -> 0 | G126: =IF('Operating results'!$D$6>0,'Operating results'!$D$7,0) -> 0 | H126: =IF('Operating results'!$D$6>0,'Operating results'!$D$7,0) -> 0 | I126: =IF('Operating results'!$D$6>0,'Operating results'!$D$7,0) -> 0 | J126: =IF('Operating results'!$D$6>0,'Operating results'!$D$7,0) -> 0 | K126: =IF('Operating results'!$D$6>0,'Operating results'!$D$7,0) -> 0 | L126: =IF('Operating results'!$D$6>0,'Operating results'!$D$7,0) -> 0 | M126: =IF('Operating results'!$D$6>0,'Operating results'!$D$7,0) -> 0 | N126: =IF('Operating results'!$D$6>0,'Operating results'!$D$7,0) -> 0 | O126: =IF('Operating results'!$D$6>0,'Operating results'!$D$7,0) -> 0 | P126: =IF('Operating results'!$D$6>0,'Operating results'!$D$7,0) -> 0 | Q126: =IF('Operating results'!$D$6>0,'Operating results'!$D$7,0) -> 0 | R126: =IF('Operating results'!$D$6>0,'Operating results'!$D$7,0) -> 0 | S126: =IF('Operating results'!$D$6>0,'Operating results'!$D$7,0) -> 0 | T126: =IF('Operating results'!$D$6>0,'Operating results'!$D$7,0) -> 0 | U126: =IF('Operating results'!$D$6>0,'Operating results'!$D$7,0) -> 0 | V126: =IF('Operating results'!$D$6>0,'Operating results'!$D$7,0) -> 0 | W126: =IF('Operating results'!$D$6>0,'Operating results'!$D$7,0) -> 0 | X126: =IF('Operating results'!$D$6>0,'Operating results'!$D$7,0) -> 0 | Y126: =IF('Operating results'!$D$6>0,'Operating results'!$D$7,0) -> 0 | Z126: =IF('Operating results'!$D$6>0,'Operating results'!$D$7,0) -> 0 | AA126: =IF('Operating results'!$D$6>0,'Operating results'!$D$7,0) -> 0 | AB126: =IF('Operating results'!$D$6>0,'Operating results'!$D$7,0) -> 0 | AC126: =IF('Operating results'!$D$6>0,'Operating results'!$D$7,0) -> 0 | AD126: =IF('Operating results'!$D$6>0,'Operating results'!$D$7,0) -> 0 | AE126: =IF('Operating results'!$D$6>0,'Operating results'!$D$7,0) -> 0 | AF126: =IF('Operating results'!$D$6>0,'Operating results'!$D$7,0) -> 0 | AG126: =IF('Operating results'!$D$6>0,'Operating results'!$D$7,0) -> 0 | AH126: =IF('Operating results'!$D$6>0,'Operating results'!$D$7,0) -> 0 | AI126: =IF('Operating results'!$D$6>0,'Operating results'!$D$7,0) -> 0 | AJ126: =IF('Operating results'!$D$6>0,'Operating results'!$D$7,0) -> 0 | AK126: =IF('Operating results'!$D$6>0,'Operating results'!$D$7,0) -> 0 | AL126: =IF('Operating results'!$D$6>0,'Operating results'!$D$7,0) -> 0 | AM126: =IF('Operating results'!$D$6>0,'Operating results'!$D$7,0) -> 0 | AN126: =IF('Operating results'!$D$6>0,'Operating results'!$D$7,0) -> 0 | AO126: =IF('Operating results'!$D$6>0,'Operating results'!$D$7,0) -> 0 | AP126: =IF('Operating results'!$D$6>0,'Operating results'!$D$7,0) -> 0 | AQ126: =IF('Operating results'!$D$6>0,'Operating results'!$D$7,0) -> 0 | AR126: =IF('Operating results'!$D$6>0,'Operating results'!$D$7,0) -> 0 | AS126: =IF('Operating results'!$D$6>0,'Operating results'!$D$7,0) -> 0 | AT126: =IF('Operating results'!$D$6>0,'Operating results'!$D$7,0) -> 0 | AU126: =IF('Operating results'!$D$6>0,'Operating results'!$D$7,0) -> 0 | AV126: =IF('Operating results'!$D$6>0,'Operating results'!$D$7,0) -> 0 | AW126: =IF('Operating results'!$D$6>0,'Operating results'!$D$7,0) -> 0 | AX126: =IF('Operating results'!$D$6>0,'Operating results'!$D$7,0) -> 0 | AY126: =IF('Operating results'!$D$6>0,'Operating results'!$D$7,0) -> 0 | AZ126: =IF('Operating results'!$D$6>0,'Operating results'!$D$7,0) -> 0 | BA126: =IF('Operating results'!$D$6>0,'Operating results'!$D$7,0) -> 0 | BB126: =IF('Operating results'!$D$6>0,'Operating results'!$D$7,0) -> 0 | BC126: =IF('Operating results'!$D$6>0,'Operating results'!$D$7,0) -> 0 | BD126: =IF('Operating results'!$D$6>0,'Operating results'!$D$7,0) -> 0 | BE126: =IF('Operating results'!$D$6>0,'Operating results'!$D$7,0) -> 0
B127: Operating costs | C127: =IF('Operating results'!$D$6>0,'Operating results'!$D$9,0) -> 0 | D127: =IF('Operating results'!$D$6>0,'Operating results'!$D$9,0) -> 0 | E127: =IF('Operating results'!$D$6>0,'Operating results'!$D$9,0) -> 0 | F127: =IF('Operating results'!$D$6>0,'Operating results'!$D$9,0) -> 0 | G127: =IF('Operating results'!$D$6>0,'Operating results'!$D$9,0) -> 0 | H127: =IF('Operating results'!$D$6>0,'Operating results'!$D$9,0) -> 0 | I127: =IF('Operating results'!$D$6>0,'Operating results'!$D$9,0) -> 0 | J127: =IF('Operating results'!$D$6>0,'Operating results'!$D$9,0) -> 0 | K127: =IF('Operating results'!$D$6>0,'Operating results'!$D$9,0) -> 0 | L127: =IF('Operating results'!$D$6>0,'Operating results'!$D$9,0) -> 0 | M127: =IF('Operating results'!$D$6>0,'Operating results'!$D$9,0) -> 0 | N127: =IF('Operating results'!$D$6>0,'Operating results'!$D$9,0) -> 0 | O127: =IF('Operating results'!$D$6>0,'Operating results'!$D$9,0) -> 0 | P127: =IF('Operating results'!$D$6>0,'Operating results'!$D$9,0) -> 0 | Q127: =IF('Operating results'!$D$6>0,'Operating results'!$D$9,0) -> 0 | R127: =IF('Operating results'!$D$6>0,'Operating results'!$D$9,0) -> 0 | S127: =IF('Operating results'!$D$6>0,'Operating results'!$D$9,0) -> 0 | T127: =IF('Operating results'!$D$6>0,'Operating results'!$D$9,0) -> 0 | U127: =IF('Operating results'!$D$6>0,'Operating results'!$D$9,0) -> 0 | V127: =IF('Operating results'!$D$6>0,'Operating results'!$D$9,0) -> 0 | W127: =IF('Operating results'!$D$6>0,'Operating results'!$D$9,0) -> 0 | X127: =IF('Operating results'!$D$6>0,'Operating results'!$D$9,0) -> 0 | Y127: =IF('Operating results'!$D$6>0,'Operating results'!$D$9,0) -> 0 | Z127: =IF('Operating results'!$D$6>0,'Operating results'!$D$9,0) -> 0 | AA127: =IF('Operating results'!$D$6>0,'Operating results'!$D$9,0) -> 0 | AB127: =IF('Operating results'!$D$6>0,'Operating results'!$D$9,0) -> 0 | AC127: =IF('Operating results'!$D$6>0,'Operating results'!$D$9,0) -> 0 | AD127: =IF('Operating results'!$D$6>0,'Operating results'!$D$9,0) -> 0 | AE127: =IF('Operating results'!$D$6>0,'Operating results'!$D$9,0) -> 0 | AF127: =IF('Operating results'!$D$6>0,'Operating results'!$D$9,0) -> 0 | AG127: =IF('Operating results'!$D$6>0,'Operating results'!$D$9,0) -> 0 | AH127: =IF('Operating results'!$D$6>0,'Operating results'!$D$9,0) -> 0 | AI127: =IF('Operating results'!$D$6>0,'Operating results'!$D$9,0) -> 0 | AJ127: =IF('Operating results'!$D$6>0,'Operating results'!$D$9,0) -> 0 | AK127: =IF('Operating results'!$D$6>0,'Operating results'!$D$9,0) -> 0 | AL127: =IF('Operating results'!$D$6>0,'Operating results'!$D$9,0) -> 0 | AM127: =IF('Operating results'!$D$6>0,'Operating results'!$D$9,0) -> 0 | AN127: =IF('Operating results'!$D$6>0,'Operating results'!$D$9,0) -> 0 | AO127: =IF('Operating results'!$D$6>0,'Operating results'!$D$9,0) -> 0 | AP127: =IF('Operating results'!$D$6>0,'Operating results'!$D$9,0) -> 0 | AQ127: =IF('Operating results'!$D$6>0,'Operating results'!$D$9,0) -> 0 | AR127: =IF('Operating results'!$D$6>0,'Operating results'!$D$9,0) -> 0 | AS127: =IF('Operating results'!$D$6>0,'Operating results'!$D$9,0) -> 0 | AT127: =IF('Operating results'!$D$6>0,'Operating results'!$D$9,0) -> 0 | AU127: =IF('Operating results'!$D$6>0,'Operating results'!$D$9,0) -> 0 | AV127: =IF('Operating results'!$D$6>0,'Operating results'!$D$9,0) -> 0 | AW127: =IF('Operating results'!$D$6>0,'Operating results'!$D$9,0) -> 0 | AX127: =IF('Operating results'!$D$6>0,'Operating results'!$D$9,0) -> 0 | AY127: =IF('Operating results'!$D$6>0,'Operating results'!$D$9,0) -> 0 | AZ127: =IF('Operating results'!$D$6>0,'Operating results'!$D$9,0) -> 0 | BA127: =IF('Operating results'!$D$6>0,'Operating results'!$D$9,0) -> 0 | BB127: =IF('Operating results'!$D$6>0,'Operating results'!$D$9,0) -> 0 | BC127: =IF('Operating results'!$D$6>0,'Operating results'!$D$9,0) -> 0 | BD127: =IF('Operating results'!$D$6>0,'Operating results'!$D$9,0) -> 0 | BE127: =IF('Operating results'!$D$6>0,'Operating results'!$D$9,0) -> 0
B128: Operating surplus | C128: =C126-C127 -> 0 | D128: =D126-D127 -> 0 | E128: 0 | F128: 0 | G128: 0 | H128: 0 | I128: 0 | J128: 0 | K128: 0 | L128: 0 | M128: 0 | N128: 0 | O128: 0 | P128: 0 | Q128: 0 | R128: 0 | S128: 0 | T128: 0 | U128: 0 | V128: 0 | W128: 0 | X128: 0 | Y128: 0 | Z128: 0 | AA128: 0 | AB128: 0 | AC128: 0 | AD128: 0 | AE128: 0 | AF128: 0 | AG128: 0 | AH128: 0 | AI128: 0 | AJ128: 0 | AK128: 0 | AL128: 0 | AM128: 0 | AN128: 0 | AO128: 0 | AP128: 0 | AQ128: 0 | AR128: 0 | AS128: 0 | AT128: 0 | AU128: 0 | AV128: 0 | AW128: 0 | AX128: 0 | AY128: 0 | AZ128: 0 | BA128: =BA126-BA127 -> 0 | BB128: 0 | BC128: 0 | BD128: 0 | BE128: 0
AB129: =AB115*AB117 -> 0
B130: Green investment
B131: Operating revenue | C131: =IF('Operating results'!$E$6>0,'Operating results'!$E$7,0) -> 0 | D131: =IF('Operating results'!$E$6>0,'Operating results'!$E$7,0) -> 0 | E131: =IF('Operating results'!$E$6>0,'Operating results'!$E$7,0) -> 0 | F131: =IF('Operating results'!$E$6>0,'Operating results'!$E$7,0) -> 0 | G131: =IF('Operating results'!$E$6>0,'Operating results'!$E$7,0) -> 0 | H131: =IF('Operating results'!$E$6>0,'Operating results'!$E$7,0) -> 0 | I131: =IF('Operating results'!$E$6>0,'Operating results'!$E$7,0) -> 0 | J131: =IF('Operating results'!$E$6>0,'Operating results'!$E$7,0) -> 0 | K131: =IF('Operating results'!$E$6>0,'Operating results'!$E$7,0) -> 0 | L131: =IF('Operating results'!$E$6>0,'Operating results'!$E$7,0) -> 0 | M131: =IF('Operating results'!$E$6>0,'Operating results'!$E$7,0) -> 0 | N131: =IF('Operating results'!$E$6>0,'Operating results'!$E$7,0) -> 0 | O131: =IF('Operating results'!$E$6>0,'Operating results'!$E$7,0) -> 0 | P131: =IF('Operating results'!$E$6>0,'Operating results'!$E$7,0) -> 0 | Q131: =IF('Operating results'!$E$6>0,'Operating results'!$E$7,0) -> 0 | R131: =IF('Operating results'!$E$6>0,'Operating results'!$E$7,0) -> 0 | S131: =IF('Operating results'!$E$6>0,'Operating results'!$E$7,0) -> 0 | T131: =IF('Operating results'!$E$6>0,'Operating results'!$E$7,0) -> 0 | U131: =IF('Operating results'!$E$6>0,'Operating results'!$E$7,0) -> 0 | V131: =IF('Operating results'!$E$6>0,'Operating results'!$E$7,0) -> 0 | W131: =IF('Operating results'!$E$6>0,'Operating results'!$E$7,0) -> 0 | X131: =IF('Operating results'!$E$6>0,'Operating results'!$E$7,0) -> 0 | Y131: =IF('Operating results'!$E$6>0,'Operating results'!$E$7,0) -> 0 | Z131: =IF('Operating results'!$E$6>0,'Operating results'!$E$7,0) -> 0 | AA131: =IF('Operating results'!$E$6>0,'Operating results'!$E$7,0) -> 0 | AB131: =IF('Operating results'!$E$6>0,'Operating results'!$E$7,0) -> 0 | AC131: =IF('Operating results'!$E$6>0,'Operating results'!$E$7,0) -> 0 | AD131: =IF('Operating results'!$E$6>0,'Operating results'!$E$7,0) -> 0 | AE131: =IF('Operating results'!$E$6>0,'Operating results'!$E$7,0) -> 0 | AF131: =IF('Operating results'!$E$6>0,'Operating results'!$E$7,0) -> 0 | AG131: =IF('Operating results'!$E$6>0,'Operating results'!$E$7,0) -> 0 | AH131: =IF('Operating results'!$E$6>0,'Operating results'!$E$7,0) -> 0 | AI131: =IF('Operating results'!$E$6>0,'Operating results'!$E$7,0) -> 0 | AJ131: =IF('Operating results'!$E$6>0,'Operating results'!$E$7,0) -> 0 | AK131: =IF('Operating results'!$E$6>0,'Operating results'!$E$7,0) -> 0 | AL131: =IF('Operating results'!$E$6>0,'Operating results'!$E$7,0) -> 0 | AM131: =IF('Operating results'!$E$6>0,'Operating results'!$E$7,0) -> 0 | AN131: =IF('Operating results'!$E$6>0,'Operating results'!$E$7,0) -> 0 | AO131: =IF('Operating results'!$E$6>0,'Operating results'!$E$7,0) -> 0 | AP131: =IF('Operating results'!$E$6>0,'Operating results'!$E$7,0) -> 0 | AQ131: =IF('Operating results'!$E$6>0,'Operating results'!$E$7,0) -> 0 | AR131: =IF('Operating results'!$E$6>0,'Operating results'!$E$7,0) -> 0 | AS131: =IF('Operating results'!$E$6>0,'Operating results'!$E$7,0) -> 0 | AT131: =IF('Operating results'!$E$6>0,'Operating results'!$E$7,0) -> 0 | AU131: =IF('Operating results'!$E$6>0,'Operating results'!$E$7,0) -> 0 | AV131: =IF('Operating results'!$E$6>0,'Operating results'!$E$7,0) -> 0 | AW131: =IF('Operating results'!$E$6>0,'Operating results'!$E$7,0) -> 0 | AX131: =IF('Operating results'!$E$6>0,'Operating results'!$E$7,0) -> 0 | AY131: =IF('Operating results'!$E$6>0,'Operating results'!$E$7,0) -> 0 | AZ131: =IF('Operating results'!$E$6>0,'Operating results'!$E$7,0) -> 0 | BA131: =IF('Operating results'!$E$6>0,'Operating results'!$E$7,0) -> 0 | BB131: =IF('Operating results'!$E$6>0,'Operating results'!$E$7,0) -> 0 | BC131: =IF('Operating results'!$E$6>0,'Operating results'!$E$7,0) -> 0 | BD131: =IF('Operating results'!$E$6>0,'Operating results'!$E$7,0) -> 0 | BE131: =IF('Operating results'!$E$6>0,'Operating results'!$E$7,0) -> 0
B132: Operating costs | C132: =IF('Operating results'!$E$6>0,'Operating results'!$E$9,0) -> 0 | D132: =IF('Operating results'!$E$6>0,'Operating results'!$E$9,0) -> 0 | E132: =IF('Operating results'!$E$6>0,'Operating results'!$E$9,0) -> 0 | F132: =IF('Operating results'!$E$6>0,'Operating results'!$E$9,0) -> 0 | G132: =IF('Operating results'!$E$6>0,'Operating results'!$E$9,0) -> 0 | H132: =IF('Operating results'!$E$6>0,'Operating results'!$E$9,0) -> 0 | I132: =IF('Operating results'!$E$6>0,'Operating results'!$E$9,0) -> 0 | J132: =IF('Operating results'!$E$6>0,'Operating results'!$E$9,0) -> 0 | K132: =IF('Operating results'!$E$6>0,'Operating results'!$E$9,0) -> 0 | L132: =IF('Operating results'!$E$6>0,'Operating results'!$E$9,0) -> 0 | M132: =IF('Operating results'!$E$6>0,'Operating results'!$E$9,0) -> 0 | N132: =IF('Operating results'!$E$6>0,'Operating results'!$E$9,0) -> 0 | O132: =IF('Operating results'!$E$6>0,'Operating results'!$E$9,0) -> 0 | P132: =IF('Operating results'!$E$6>0,'Operating results'!$E$9,0) -> 0 | Q132: =IF('Operating results'!$E$6>0,'Operating results'!$E$9,0) -> 0 | R132: =IF('Operating results'!$E$6>0,'Operating results'!$E$9,0) -> 0 | S132: =IF('Operating results'!$E$6>0,'Operating results'!$E$9,0) -> 0 | T132: =IF('Operating results'!$E$6>0,'Operating results'!$E$9,0) -> 0 | U132: =IF('Operating results'!$E$6>0,'Operating results'!$E$9,0) -> 0 | V132: =IF('Operating results'!$E$6>0,'Operating results'!$E$9,0) -> 0 | W132: =IF('Operating results'!$E$6>0,'Operating results'!$E$9,0) -> 0 | X132: =IF('Operating results'!$E$6>0,'Operating results'!$E$9,0) -> 0 | Y132: =IF('Operating results'!$E$6>0,'Operating results'!$E$9,0) -> 0 | Z132: =IF('Operating results'!$E$6>0,'Operating results'!$E$9,0) -> 0 | AA132: =IF('Operating results'!$E$6>0,'Operating results'!$E$9,0) -> 0 | AB132: =IF('Operating results'!$E$6>0,'Operating results'!$E$9,0) -> 0 | AC132: =IF('Operating results'!$E$6>0,'Operating results'!$E$9,0) -> 0 | AD132: =IF('Operating results'!$E$6>0,'Operating results'!$E$9,0) -> 0 | AE132: =IF('Operating results'!$E$6>0,'Operating results'!$E$9,0) -> 0 | AF132: =IF('Operating results'!$E$6>0,'Operating results'!$E$9,0) -> 0 | AG132: =IF('Operating results'!$E$6>0,'Operating results'!$E$9,0) -> 0 | AH132: =IF('Operating results'!$E$6>0,'Operating results'!$E$9,0) -> 0 | AI132: =IF('Operating results'!$E$6>0,'Operating results'!$E$9,0) -> 0 | AJ132: =IF('Operating results'!$E$6>0,'Operating results'!$E$9,0) -> 0 | AK132: =IF('Operating results'!$E$6>0,'Operating results'!$E$9,0) -> 0 | AL132: =IF('Operating results'!$E$6>0,'Operating results'!$E$9,0) -> 0 | AM132: =IF('Operating results'!$E$6>0,'Operating results'!$E$9,0) -> 0 | AN132: =IF('Operating results'!$E$6>0,'Operating results'!$E$9,0) -> 0 | AO132: =IF('Operating results'!$E$6>0,'Operating results'!$E$9,0) -> 0 | AP132: =IF('Operating results'!$E$6>0,'Operating results'!$E$9,0) -> 0 | AQ132: =IF('Operating results'!$E$6>0,'Operating results'!$E$9,0) -> 0 | AR132: =IF('Operating results'!$E$6>0,'Operating results'!$E$9,0) -> 0 | AS132: =IF('Operating results'!$E$6>0,'Operating results'!$E$9,0) -> 0 | AT132: =IF('Operating results'!$E$6>0,'Operating results'!$E$9,0) -> 0 | AU132: =IF('Operating results'!$E$6>0,'Operating results'!$E$9,0) -> 0 | AV132: =IF('Operating results'!$E$6>0,'Operating results'!$E$9,0) -> 0 | AW132: =IF('Operating results'!$E$6>0,'Operating results'!$E$9,0) -> 0 | AX132: =IF('Operating results'!$E$6>0,'Operating results'!$E$9,0) -> 0 | AY132: =IF('Operating results'!$E$6>0,'Operating results'!$E$9,0) -> 0 | AZ132: =IF('Operating results'!$E$6>0,'Operating results'!$E$9,0) -> 0 | BA132: =IF('Operating results'!$E$6>0,'Operating results'!$E$9,0) -> 0 | BB132: =IF('Operating results'!$E$6>0,'Operating results'!$E$9,0) -> 0 | BC132: =IF('Operating results'!$E$6>0,'Operating results'!$E$9,0) -> 0 | BD132: =IF('Operating results'!$E$6>0,'Operating results'!$E$9,0) -> 0 | BE132: =IF('Operating results'!$E$6>0,'Operating results'!$E$9,0) -> 0
B133: Operating surplus | C133: =C131-C132 -> 0 | D133: =D131-D132 -> 0 | E133: =E131-E132 -> 0 | F133: =F131-F132 -> 0 | G133: =G131-G132 -> 0 | H133: =H131-H132 -> 0 | I133: =I131-I132 -> 0 | J133: =J131-J132 -> 0 | K133: =K131-K132 -> 0 | L133: =L131-L132 -> 0 | M133: =M131-M132 -> 0 | N133: =N131-N132 -> 0 | O133: =O131-O132 -> 0 | P133: =P131-P132 -> 0 | Q133: =Q131-Q132 -> 0 | R133: =R131-R132 -> 0 | S133: =S131-S132 -> 0 | T133: =T131-T132 -> 0 | U133: =U131-U132 -> 0 | V133: =V131-V132 -> 0 | W133: =W131-W132 -> 0 | X133: =X131-X132 -> 0 | Y133: =Y131-Y132 -> 0 | Z133: =Z131-Z132 -> 0 | AA133: =AA131-AA132 -> 0 | AB133: =AB131-AB132 -> 0 | AC133: =AC131-AC132 -> 0 | AD133: =AD131-AD132 -> 0 | AE133: =AE131-AE132 -> 0 | AF133: =AF131-AF132 -> 0 | AG133: =AG131-AG132 -> 0 | AH133: =AH131-AH132 -> 0 | AI133: =AI131-AI132 -> 0 | AJ133: =AJ131-AJ132 -> 0 | AK133: =AK131-AK132 -> 0 | AL133: =AL131-AL132 -> 0 | AM133: =AM131-AM132 -> 0 | AN133: =AN131-AN132 -> 0 | AO133: =AO131-AO132 -> 0 | AP133: =AP131-AP132 -> 0 | AQ133: =AQ131-AQ132 -> 0 | AR133: =AR131-AR132 -> 0 | AS133: =AS131-AS132 -> 0 | AT133: =AT131-AT132 -> 0 | AU133: =AU131-AU132 -> 0 | AV133: =AV131-AV132 -> 0 | AW133: =AW131-AW132 -> 0 | AX133: =AX131-AX132 -> 0 | AY133: =AY131-AY132 -> 0 | AZ133: =AZ131-AZ132 -> 0 | BA133: 0 | BB133: 0 | BC133: 0 | BD133: 0 | BE133: 0
B136: Financing
B137: top ↑
C138: =Description!C8 -> 2017 | D138: =C138+1 -> 2018 | E138: =D138+1 -> 2019 | F138: =E138+1 -> 2020 | G138: 2021 | H138: 2022 | I138: 2023 | J138: 2024 | K138: =J138+1 -> 2025 | L138: 2026 | M138: 2027 | N138: 2028 | O138: 2029 | P138: 2030 | Q138: 2031 | R138: 2032 | S138: 2033 | T138: 2034 | U138: 2035 | V138: 2036 | W138: 2037 | X138: 2038 | Y138: 2039 | Z138: 2040 | AA138: 2041 | AB138: 2042 | AC138: 2043 | AD138: 2044 | AE138: 2045 | AF138: 2046 | AG138: 2047 | AH138: 2048 | AI138: 2049 | AJ138: 2050 | AK138: 2051 | AL138: 2052 | AM138: 2053 | AN138: 2054 | AO138: 2055 | AP138: 2056 | AQ138: 2057 | AR138: 2058 | AS138: 2059 | AT138: 2060 | AU138: 2061 | AV138: 2062 | AW138: 2063 | AX138: 2064 | AY138: 2065 | AZ138: 2066 | BA138: 2067 | BB138: 2068 | BC138: 2069 | BD138: 2070 | BE138: 2071
B139: Conventional investment
B140: Inflows (without equity) | C140: ='Investment volume'!$D$6*SUM('Investment volume'!$D$11:$D$14) -> 0 | D140: 0 | E140: 0 | F140: 0 | G140: 0 | H140: 0 | I140: 0 | J140: 0 | K140: 0 | L140: 0 | M140: 0 | N140: 0 | O140: 0 | P140: 0 | Q140: 0 | R140: 0 | S140: 0 | T140: 0 | U140: 0 | V140: 0 | W140: 0 | X140: 0 | Y140: 0 | Z140: 0 | AA140: 0 | AB140: 0 | AC140: 0 | AD140: 0 | AE140: 0 | AF140: 0 | AG140: 0 | AH140: 0 | AI140: 0 | AJ140: 0 | AK140: 0 | AL140: 0 | AM140: 0 | AN140: 0 | AO140: 0 | AP140: 0 | AQ140: 0 | AR140: 0 | AS140: 0 | AT140: 0 | AU140: 0 | AV140: 0 | AW140: 0 | AX140: 0 | AY140: 0 | AZ140: 0 | BA140: 0 | BB140: 0 | BC140: 0 | BD140: 0 | BE140: 0
B141: Capital costs | C141: =IF('Operating results'!D6<=1,C140*(1+'Investment volume'!D19),'Investment volume'!$D$6*'Investment volume'!$D$14*(1+'Investment volume'!$D$19)/'Operating results'!$D$6) -> 0 | D141: =IF('Operating results'!$D$6>1,'Investment volume'!$D$6*'Investment volume'!$D$14*(1+'Investment volume'!$D$19)/'Operating results'!$D$6,0) -> 0 | E141: =IF('Operating results'!$D$6>1,'Investment volume'!$D$6*'Investment volume'!$D$14*(1+'Investment volume'!$D$19)/'Operating results'!$D$6,0) -> 0 | F141: =IF('Operating results'!$D$6>1,'Investment volume'!$D$6*'Investment volume'!$D$14*(1+'Investment volume'!$D$19)/'Operating results'!$D$6,0) -> 0 | G141: =IF('Operating results'!$D$6>1,'Investment volume'!$D$6*'Investment volume'!$D$14*(1+'Investment volume'!$D$19)/'Operating results'!$D$6,0) -> 0 | H141: =IF('Operating results'!$D$6>1,'Investment volume'!$D$6*'Investment volume'!$D$14*(1+'Investment volume'!$D$19)/'Operating results'!$D$6,0) -> 0 | I141: =IF('Operating results'!$D$6>1,'Investment volume'!$D$6*'Investment volume'!$D$14*(1+'Investment volume'!$D$19)/'Operating results'!$D$6,0) -> 0 | J141: =IF('Operating results'!$D$6>1,'Investment volume'!$D$6*'Investment volume'!$D$14*(1+'Investment volume'!$D$19)/'Operating results'!$D$6,0) -> 0 | K141: =IF('Operating results'!$D$6>1,'Investment volume'!$D$6*'Investment volume'!$D$14*(1+'Investment volume'!$D$19)/'Operating results'!$D$6,0) -> 0 | L141: =IF('Operating results'!$D$6>1,'Investment volume'!$D$6*'Investment volume'!$D$14*(1+'Investment volume'!$D$19)/'Operating results'!$D$6,0) -> 0 | M141: =IF('Operating results'!$D$6>1,'Investment volume'!$D$6*'Investment volume'!$D$14*(1+'Investment volume'!$D$19)/'Operating results'!$D$6,0) -> 0 | N141: =IF('Operating results'!$D$6>1,'Investment volume'!$D$6*'Investment volume'!$D$14*(1+'Investment volume'!$D$19)/'Operating results'!$D$6,0) -> 0 | O141: =IF('Operating results'!$D$6>1,'Investment volume'!$D$6*'Investment volume'!$D$14*(1+'Investment volume'!$D$19)/'Operating results'!$D$6,0) -> 0 | P141: =IF('Operating results'!$D$6>1,'Investment volume'!$D$6*'Investment volume'!$D$14*(1+'Investment volume'!$D$19)/'Operating results'!$D$6,0) -> 0 | Q141: =IF('Operating results'!$D$6>1,'Investment volume'!$D$6*'Investment volume'!$D$14*(1+'Investment volume'!$D$19)/'Operating results'!$D$6,0) -> 0 | R141: =IF('Operating results'!$D$6>1,'Investment volume'!$D$6*'Investment volume'!$D$14*(1+'Investment volume'!$D$19)/'Operating results'!$D$6,0) -> 0 | S141: =IF('Operating results'!$D$6>1,'Investment volume'!$D$6*'Investment volume'!$D$14*(1+'Investment volume'!$D$19)/'Operating results'!$D$6,0) -> 0 | T141: =IF('Operating results'!$D$6>1,'Investment volume'!$D$6*'Investment volume'!$D$14*(1+'Investment volume'!$D$19)/'Operating results'!$D$6,0) -> 0 | U141: =IF('Operating results'!$D$6>1,'Investment volume'!$D$6*'Investment volume'!$D$14*(1+'Investment volume'!$D$19)/'Operating results'!$D$6,0) -> 0 | V141: =IF('Operating results'!$D$6>1,'Investment volume'!$D$6*'Investment volume'!$D$14*(1+'Investment volume'!$D$19)/'Operating results'!$D$6,0) -> 0 | W141: =IF('Operating results'!$D$6>1,'Investment volume'!$D$6*'Investment volume'!$D$14*(1+'Investment volume'!$D$19)/'Operating results'!$D$6,0) -> 0 | X141: =IF('Operating results'!$D$6>1,'Investment volume'!$D$6*'Investment volume'!$D$14*(1+'Investment volume'!$D$19)/'Operating results'!$D$6,0) -> 0 | Y141: =IF('Operating results'!$D$6>1,'Investment volume'!$D$6*'Investment volume'!$D$14*(1+'Investment volume'!$D$19)/'Operating results'!$D$6,0) -> 0 | Z141: =IF('Operating results'!$D$6>1,'Investment volume'!$D$6*'Investment volume'!$D$14*(1+'Investment volume'!$D$19)/'Operating results'!$D$6,0) -> 0 | AA141: =IF('Operating results'!$D$6>1,'Investment volume'!$D$6*'Investment volume'!$D$14*(1+'Investment volume'!$D$19)/'Operating results'!$D$6,0) -> 0 | AB141: =IF('Operating results'!$D$6>1,'Investment volume'!$D$6*'Investment volume'!$D$14*(1+'Investment volume'!$D$19)/'Operating results'!$D$6,0) -> 0 | AC141: =IF('Operating results'!$D$6>1,'Investment volume'!$D$6*'Investment volume'!$D$14*(1+'Investment volume'!$D$19)/'Operating results'!$D$6,0) -> 0 | AD141: =IF('Operating results'!$D$6>1,'Investment volume'!$D$6*'Investment volume'!$D$14*(1+'Investment volume'!$D$19)/'Operating results'!$D$6,0) -> 0 | AE141: =IF('Operating results'!$D$6>1,'Investment volume'!$D$6*'Investment volume'!$D$14*(1+'Investment volume'!$D$19)/'Operating results'!$D$6,0) -> 0 | AF141: =IF('Operating results'!$D$6>1,'Investment volume'!$D$6*'Investment volume'!$D$14*(1+'Investment volume'!$D$19)/'Operating results'!$D$6,0) -> 0 | AG141: =IF('Operating results'!$D$6>1,'Investment volume'!$D$6*'Investment volume'!$D$14*(1+'Investment volume'!$D$19)/'Operating results'!$D$6,0) -> 0 | AH141: =IF('Operating results'!$D$6>1,'Investment volume'!$D$6*'Investment volume'!$D$14*(1+'Investment volume'!$D$19)/'Operating results'!$D$6,0) -> 0 | AI141: =IF('Operating results'!$D$6>1,'Investment volume'!$D$6*'Investment volume'!$D$14*(1+'Investment volume'!$D$19)/'Operating results'!$D$6,0) -> 0 | AJ141: =IF('Operating results'!$D$6>1,'Investment volume'!$D$6*'Investment volume'!$D$14*(1+'Investment volume'!$D$19)/'Operating results'!$D$6,0) -> 0 | AK141: =IF('Operating results'!$D$6>1,'Investment volume'!$D$6*'Investment volume'!$D$14*(1+'Investment volume'!$D$19)/'Operating results'!$D$6,0) -> 0 | AL141: =IF('Operating results'!$D$6>1,'Investment volume'!$D$6*'Investment volume'!$D$14*(1+'Investment volume'!$D$19)/'Operating results'!$D$6,0) -> 0 | AM141: =IF('Operating results'!$D$6>1,'Investment volume'!$D$6*'Investment volume'!$D$14*(1+'Investment volume'!$D$19)/'Operating results'!$D$6,0) -> 0 | AN141: =IF('Operating results'!$D$6>1,'Investment volume'!$D$6*'Investment volume'!$D$14*(1+'Investment volume'!$D$19)/'Operating results'!$D$6,0) -> 0 | AO141: =IF('Operating results'!$D$6>1,'Investment volume'!$D$6*'Investment volume'!$D$14*(1+'Investment volume'!$D$19)/'Operating results'!$D$6,0) -> 0 | AP141: =IF('Operating results'!$D$6>1,'Investment volume'!$D$6*'Investment volume'!$D$14*(1+'Investment volume'!$D$19)/'Operating results'!$D$6,0) -> 0 | AQ141: =IF('Operating results'!$D$6>1,'Investment volume'!$D$6*'Investment volume'!$D$14*(1+'Investment volume'!$D$19)/'Operating results'!$D$6,0) -> 0 | AR141: =IF('Operating results'!$D$6>1,'Investment volume'!$D$6*'Investment volume'!$D$14*(1+'Investment volume'!$D$19)/'Operating results'!$D$6,0) -> 0 | AS141: =IF('Operating results'!$D$6>1,'Investment volume'!$D$6*'Investment volume'!$D$14*(1+'Investment volume'!$D$19)/'Operating results'!$D$6,0) -> 0 | AT141: =IF('Operating results'!$D$6>1,'Investment volume'!$D$6*'Investment volume'!$D$14*(1+'Investment volume'!$D$19)/'Operating results'!$D$6,0) -> 0 | AU141: =IF('Operating results'!$D$6>1,'Investment volume'!$D$6*'Investment volume'!$D$14*(1+'Investment volume'!$D$19)/'Operating results'!$D$6,0) -> 0 | AV141: =IF('Operating results'!$D$6>1,'Investment volume'!$D$6*'Investment volume'!$D$14*(1+'Investment volume'!$D$19)/'Operating results'!$D$6,0) -> 0 | AW141: =IF('Operating results'!$D$6>1,'Investment volume'!$D$6*'Investment volume'!$D$14*(1+'Investment volume'!$D$19)/'Operating results'!$D$6,0) -> 0 | AX141: =IF('Operating results'!$D$6>1,'Investment volume'!$D$6*'Investment volume'!$D$14*(1+'Investment volume'!$D$19)/'Operating results'!$D$6,0) -> 0 | AY141: =IF('Operating results'!$D$6>1,'Investment volume'!$D$6*'Investment volume'!$D$14*(1+'Investment volume'!$D$19)/'Operating results'!$D$6,0) -> 0 | AZ141: =IF('Operating results'!$D$6>1,'Investment volume'!$D$6*'Investment volume'!$D$14*(1+'Investment volume'!$D$19)/'Operating results'!$D$6,0) -> 0 | BA141: =IF('Operating results'!$D$6>1,'Investment volume'!$D$6*'Investment volume'!$D$14*(1+'Investment volume'!$D$19)/'Operating results'!$D$6,0) -> 0 | BB141: =IF('Operating results'!$D$6>1,'Investment volume'!$D$6*'Investment volume'!$D$14*(1+'Investment volume'!$D$19)/'Operating results'!$D$6,0) -> 0 | BC141: =IF('Operating results'!$D$6>1,'Investment volume'!$D$6*'Investment volume'!$D$14*(1+'Investment volume'!$D$19)/'Operating results'!$D$6,0) -> 0 | BD141: =IF('Operating results'!$D$6>1,'Investment volume'!$D$6*'Investment volume'!$D$14*(1+'Investment volume'!$D$19)/'Operating results'!$D$6,0) -> 0 | BE141: =IF('Operating results'!$D$6>1,'Investment volume'!$D$6*'Investment volume'!$D$14*(1+'Investment volume'!$D$19)/'Operating results'!$D$6,0) -> 0
B142: Net financial flow | C142: =C140-C141 -> 0 | D142: =D140-D141 -> 0 | E142: =E140-E141 -> 0 | F142: =F140-F141 -> 0 | G142: =G140-G141 -> 0 | H142: =H140-H141 -> 0 | I142: =I140-I141 -> 0 | J142: =J140-J141 -> 0 | K142: =K140-K141 -> 0 | L142: =L140-L141 -> 0 | M142: =M140-M141 -> 0 | N142: =N140-N141 -> 0 | O142: =O140-O141 -> 0 | P142: =P140-P141 -> 0 | Q142: =Q140-Q141 -> 0 | R142: =R140-R141 -> 0 | S142: =S140-S141 -> 0 | T142: =T140-T141 -> 0 | U142: =U140-U141 -> 0 | V142: =V140-V141 -> 0 | W142: =W140-W141 -> 0 | X142: =X140-X141 -> 0 | Y142: =Y140-Y141 -> 0 | Z142: =Z140-Z141 -> 0 | AA142: =AA140-AA141 -> 0 | AB142: =AB140-AB141 -> 0 | AC142: =AC140-AC141 -> 0 | AD142: =AD140-AD141 -> 0 | AE142: =AE140-AE141 -> 0 | AF142: =AF140-AF141 -> 0 | AG142: =AG140-AG141 -> 0 | AH142: =AH140-AH141 -> 0 | AI142: =AI140-AI141 -> 0 | AJ142: =AJ140-AJ141 -> 0 | AK142: =AK140-AK141 -> 0 | AL142: =AL140-AL141 -> 0 | AM142: =AM140-AM141 -> 0 | AN142: =AN140-AN141 -> 0 | AO142: =AO140-AO141 -> 0 | AP142: =AP140-AP141 -> 0 | AQ142: =AQ140-AQ141 -> 0 | AR142: =AR140-AR141 -> 0 | AS142: =AS140-AS141 -> 0 | AT142: =AT140-AT141 -> 0 | AU142: =AU140-AU141 -> 0 | AV142: =AV140-AV141 -> 0 | AW142: =AW140-AW141 -> 0 | AX142: =AX140-AX141 -> 0 | AY142: =AY140-AY141 -> 0 | AZ142: 0 | BA142: 0 | BB142: 0 | BC142: 0 | BD142: 0 | BE142: 0
B144: Green investment
B145: Inflows (without equity) | C145: ='Investment volume'!$E$6*SUM('Investment volume'!$E$11:$E$14) -> 0 | D145: 0 | E145: 0 | F145: 0 | G145: 0 | H145: 0 | I145: 0 | J145: 0 | K145: 0 | L145: 0 | M145: 0 | N145: 0 | O145: 0 | P145: 0 | Q145: 0 | R145: 0 | S145: 0 | T145: 0 | U145: 0 | V145: 0 | W145: 0 | X145: 0 | Y145: 0 | Z145: 0 | AA145: 0 | AB145: 0 | AC145: 0 | AD145: 0 | AE145: 0 | AF145: 0 | AG145: 0 | AH145: 0 | AI145: 0 | AJ145: 0 | AK145: 0 | AL145: 0 | AM145: 0 | AN145: 0 | AO145: 0 | AP145: 0 | AQ145: 0 | AR145: 0 | AS145: 0 | AT145: 0 | AU145: 0 | AV145: 0 | AW145: 0 | AX145: 0 | AY145: 0 | AZ145: 0 | BA145: 0 | BB145: 0 | BC145: 0 | BD145: 0 | BE145: 0
B146: Capital costs | C146: =IF('Operating results'!E6<=1,C145*(1+'Investment volume'!D19),'Investment volume'!$E$6*'Investment volume'!$E$14*(1+'Investment volume'!$D$19)/'Operating results'!$E$6) -> 0 | D146: =IF('Operating results'!$E$6>1,'Investment volume'!$E$6*'Investment volume'!$E$14*(1+'Investment volume'!$D$19)/'Operating results'!$E$6,0) -> 0 | E146: =IF('Operating results'!$E$6>1,'Investment volume'!$E$6*'Investment volume'!$E$14*(1+'Investment volume'!$D$19)/'Operating results'!$E$6,0) -> 0 | F146: =IF('Operating results'!$E$6>1,'Investment volume'!$E$6*'Investment volume'!$E$14*(1+'Investment volume'!$D$19)/'Operating results'!$E$6,0) -> 0 | G146: =IF('Operating results'!$E$6>1,'Investment volume'!$E$6*'Investment volume'!$E$14*(1+'Investment volume'!$D$19)/'Operating results'!$E$6,0) -> 0 | H146: =IF('Operating results'!$E$6>1,'Investment volume'!$E$6*'Investment volume'!$E$14*(1+'Investment volume'!$D$19)/'Operating results'!$E$6,0) -> 0 | I146: =IF('Operating results'!$E$6>1,'Investment volume'!$E$6*'Investment volume'!$E$14*(1+'Investment volume'!$D$19)/'Operating results'!$E$6,0) -> 0 | J146: =IF('Operating results'!$E$6>1,'Investment volume'!$E$6*'Investment volume'!$E$14*(1+'Investment volume'!$D$19)/'Operating results'!$E$6,0) -> 0 | K146: =IF('Operating results'!$E$6>1,'Investment volume'!$E$6*'Investment volume'!$E$14*(1+'Investment volume'!$D$19)/'Operating results'!$E$6,0) -> 0 | L146: =IF('Operating results'!$E$6>1,'Investment volume'!$E$6*'Investment volume'!$E$14*(1+'Investment volume'!$D$19)/'Operating results'!$E$6,0) -> 0 | M146: =IF('Operating results'!$E$6>1,'Investment volume'!$E$6*'Investment volume'!$E$14*(1+'Investment volume'!$D$19)/'Operating results'!$E$6,0) -> 0 | N146: =IF('Operating results'!$E$6>1,'Investment volume'!$E$6*'Investment volume'!$E$14*(1+'Investment volume'!$D$19)/'Operating results'!$E$6,0) -> 0 | O146: =IF('Operating results'!$E$6>1,'Investment volume'!$E$6*'Investment volume'!$E$14*(1+'Investment volume'!$D$19)/'Operating results'!$E$6,0) -> 0 | P146: =IF('Operating results'!$E$6>1,'Investment volume'!$E$6*'Investment volume'!$E$14*(1+'Investment volume'!$D$19)/'Operating results'!$E$6,0) -> 0 | Q146: =IF('Operating results'!$E$6>1,'Investment volume'!$E$6*'Investment volume'!$E$14*(1+'Investment volume'!$D$19)/'Operating results'!$E$6,0) -> 0 | R146: =IF('Operating results'!$E$6>1,'Investment volume'!$E$6*'Investment volume'!$E$14*(1+'Investment volume'!$D$19)/'Operating results'!$E$6,0) -> 0 | S146: =IF('Operating results'!$E$6>1,'Investment volume'!$E$6*'Investment volume'!$E$14*(1+'Investment volume'!$D$19)/'Operating results'!$E$6,0) -> 0 | T146: =IF('Operating results'!$E$6>1,'Investment volume'!$E$6*'Investment volume'!$E$14*(1+'Investment volume'!$D$19)/'Operating results'!$E$6,0) -> 0 | U146: =IF('Operating results'!$E$6>1,'Investment volume'!$E$6*'Investment volume'!$E$14*(1+'Investment volume'!$D$19)/'Operating results'!$E$6,0) -> 0 | V146: =IF('Operating results'!$E$6>1,'Investment volume'!$E$6*'Investment volume'!$E$14*(1+'Investment volume'!$D$19)/'Operating results'!$E$6,0) -> 0 | W146: =IF('Operating results'!$E$6>1,'Investment volume'!$E$6*'Investment volume'!$E$14*(1+'Investment volume'!$D$19)/'Operating results'!$E$6,0) -> 0 | X146: =IF('Operating results'!$E$6>1,'Investment volume'!$E$6*'Investment volume'!$E$14*(1+'Investment volume'!$D$19)/'Operating results'!$E$6,0) -> 0 | Y146: =IF('Operating results'!$E$6>1,'Investment volume'!$E$6*'Investment volume'!$E$14*(1+'Investment volume'!$D$19)/'Operating results'!$E$6,0) -> 0 | Z146: =IF('Operating results'!$E$6>1,'Investment volume'!$E$6*'Investment volume'!$E$14*(1+'Investment volume'!$D$19)/'Operating results'!$E$6,0) -> 0 | AA146: =IF('Operating results'!$E$6>1,'Investment volume'!$E$6*'Investment volume'!$E$14*(1+'Investment volume'!$D$19)/'Operating results'!$E$6,0) -> 0 | AB146: =IF('Operating results'!$E$6>1,'Investment volume'!$E$6*'Investment volume'!$E$14*(1+'Investment volume'!$D$19)/'Operating results'!$E$6,0) -> 0 | AC146: =IF('Operating results'!$E$6>1,'Investment volume'!$E$6*'Investment volume'!$E$14*(1+'Investment volume'!$D$19)/'Operating results'!$E$6,0) -> 0 | AD146: =IF('Operating results'!$E$6>1,'Investment volume'!$E$6*'Investment volume'!$E$14*(1+'Investment volume'!$D$19)/'Operating results'!$E$6,0) -> 0 | AE146: =IF('Operating results'!$E$6>1,'Investment volume'!$E$6*'Investment volume'!$E$14*(1+'Investment volume'!$D$19)/'Operating results'!$E$6,0) -> 0 | AF146: =IF('Operating results'!$E$6>1,'Investment volume'!$E$6*'Investment volume'!$E$14*(1+'Investment volume'!$D$19)/'Operating results'!$E$6,0) -> 0 | AG146: =IF('Operating results'!$E$6>1,'Investment volume'!$E$6*'Investment volume'!$E$14*(1+'Investment volume'!$D$19)/'Operating results'!$E$6,0) -> 0 | AH146: =IF('Operating results'!$E$6>1,'Investment volume'!$E$6*'Investment volume'!$E$14*(1+'Investment volume'!$D$19)/'Operating results'!$E$6,0) -> 0 | AI146: =IF('Operating results'!$E$6>1,'Investment volume'!$E$6*'Investment volume'!$E$14*(1+'Investment volume'!$D$19)/'Operating results'!$E$6,0) -> 0 | AJ146: =IF('Operating results'!$E$6>1,'Investment volume'!$E$6*'Investment volume'!$E$14*(1+'Investment volume'!$D$19)/'Operating results'!$E$6,0) -> 0 | AK146: =IF('Operating results'!$E$6>1,'Investment volume'!$E$6*'Investment volume'!$E$14*(1+'Investment volume'!$D$19)/'Operating results'!$E$6,0) -> 0 | AL146: =IF('Operating results'!$E$6>1,'Investment volume'!$E$6*'Investment volume'!$E$14*(1+'Investment volume'!$D$19)/'Operating results'!$E$6,0) -> 0 | AM146: =IF('Operating results'!$E$6>1,'Investment volume'!$E$6*'Investment volume'!$E$14*(1+'Investment volume'!$D$19)/'Operating results'!$E$6,0) -> 0 | AN146: =IF('Operating results'!$E$6>1,'Investment volume'!$E$6*'Investment volume'!$E$14*(1+'Investment volume'!$D$19)/'Operating results'!$E$6,0) -> 0 | AO146: =IF('Operating results'!$E$6>1,'Investment volume'!$E$6*'Investment volume'!$E$14*(1+'Investment volume'!$D$19)/'Operating results'!$E$6,0) -> 0 | AP146: =IF('Operating results'!$E$6>1,'Investment volume'!$E$6*'Investment volume'!$E$14*(1+'Investment volume'!$D$19)/'Operating results'!$E$6,0) -> 0 | AQ146: =IF('Operating results'!$E$6>1,'Investment volume'!$E$6*'Investment volume'!$E$14*(1+'Investment volume'!$D$19)/'Operating results'!$E$6,0) -> 0 | AR146: =IF('Operating results'!$E$6>1,'Investment volume'!$E$6*'Investment volume'!$E$14*(1+'Investment volume'!$D$19)/'Operating results'!$E$6,0) -> 0 | AS146: =IF('Operating results'!$E$6>1,'Investment volume'!$E$6*'Investment volume'!$E$14*(1+'Investment volume'!$D$19)/'Operating results'!$E$6,0) -> 0 | AT146: =IF('Operating results'!$E$6>1,'Investment volume'!$E$6*'Investment volume'!$E$14*(1+'Investment volume'!$D$19)/'Operating results'!$E$6,0) -> 0 | AU146: =IF('Operating results'!$E$6>1,'Investment volume'!$E$6*'Investment volume'!$E$14*(1+'Investment volume'!$D$19)/'Operating results'!$E$6,0) -> 0 | AV146: =IF('Operating results'!$E$6>1,'Investment volume'!$E$6*'Investment volume'!$E$14*(1+'Investment volume'!$D$19)/'Operating results'!$E$6,0) -> 0 | AW146: =IF('Operating results'!$E$6>1,'Investment volume'!$E$6*'Investment volume'!$E$14*(1+'Investment volume'!$D$19)/'Operating results'!$E$6,0) -> 0 | AX146: =IF('Operating results'!$E$6>1,'Investment volume'!$E$6*'Investment volume'!$E$14*(1+'Investment volume'!$D$19)/'Operating results'!$E$6,0) -> 0 | AY146: =IF('Operating results'!$E$6>1,'Investment volume'!$E$6*'Investment volume'!$E$14*(1+'Investment volume'!$D$19)/'Operating results'!$E$6,0) -> 0 | AZ146: =IF('Operating results'!$E$6>1,'Investment volume'!$E$6*'Investment volume'!$E$14*(1+'Investment volume'!$D$19)/'Operating results'!$E$6,0) -> 0 | BA146: =IF('Operating results'!$E$6>1,'Investment volume'!$E$6*'Investment volume'!$E$14*(1+'Investment volume'!$D$19)/'Operating results'!$E$6,0) -> 0 | BB146: =IF('Operating results'!$E$6>1,'Investment volume'!$E$6*'Investment volume'!$E$14*(1+'Investment volume'!$D$19)/'Operating results'!$E$6,0) -> 0 | BC146: =IF('Operating results'!$E$6>1,'Investment volume'!$E$6*'Investment volume'!$E$14*(1+'Investment volume'!$D$19)/'Operating results'!$E$6,0) -> 0 | BD146: =IF('Operating results'!$E$6>1,'Investment volume'!$E$6*'Investment volume'!$E$14*(1+'Investment volume'!$D$19)/'Operating results'!$E$6,0) -> 0 | BE146: =IF('Operating results'!$E$6>1,'Investment volume'!$E$6*'Investment volume'!$E$14*(1+'Investment volume'!$D$19)/'Operating results'!$E$6,0) -> 0
B147: Net financial flow | C147: =C145-C146 -> 0 | D147: =D145-D146 -> 0 | E147: =E145-E146 -> 0 | F147: =F145-F146 -> 0 | G147: =G145-G146 -> 0 | H147: =H145-H146 -> 0 | I147: =I145-I146 -> 0 | J147: =J145-J146 -> 0 | K147: =K145-K146 -> 0 | L147: =L145-L146 -> 0 | M147: =M145-M146 -> 0 | N147: =N145-N146 -> 0 | O147: =O145-O146 -> 0 | P147: =P145-P146 -> 0 | Q147: =Q145-Q146 -> 0 | R147: =R145-R146 -> 0 | S147: =S145-S146 -> 0 | T147: =T145-T146 -> 0 | U147: =U145-U146 -> 0 | V147: =V145-V146 -> 0 | W147: =W145-W146 -> 0 | X147: =X145-X146 -> 0 | Y147: =Y145-Y146 -> 0 | Z147: =Z145-Z146 -> 0 | AA147: =AA145-AA146 -> 0 | AB147: =AB145-AB146 -> 0 | AC147: =AC145-AC146 -> 0 | AD147: =AD145-AD146 -> 0 | AE147: =AE145-AE146 -> 0 | AF147: =AF145-AF146 -> 0 | AG147: =AG145-AG146 -> 0 | AH147: =AH145-AH146 -> 0 | AI147: =AI145-AI146 -> 0 | AJ147: =AJ145-AJ146 -> 0 | AK147: =AK145-AK146 -> 0 | AL147: =AL145-AL146 -> 0 | AM147: =AM145-AM146 -> 0 | AN147: =AN145-AN146 -> 0 | AO147: =AO145-AO146 -> 0 | AP147: =AP145-AP146 -> 0 | AQ147: =AQ145-AQ146 -> 0 | AR147: =AR145-AR146 -> 0 | AS147: =AS145-AS146 -> 0 | AT147: =AT145-AT146 -> 0 | AU147: =AU145-AU146 -> 0 | AV147: =AV145-AV146 -> 0 | AW147: =AW145-AW146 -> 0 | AX147: =AX145-AX146 -> 0 | AY147: =AY145-AY146 -> 0 | AZ147: 0 | BA147: 0 | BB147: 0 | BC147: 0 | BD147: 0 | BE147: 0
B149: Discounted Figures
B150: top ↑
C151: =Description!C8 -> 2017 | D151: =C151+1 -> 2018 | E151: =D151+1 -> 2019 | F151: =E151+1 -> 2020 | G151: 2021 | H151: 2022 | I151: 2023 | J151: 2024 | K151: =J151+1 -> 2025 | L151: 2026 | M151: 2027 | N151: 2028 | O151: 2029 | P151: 2030 | Q151: 2031 | R151: 2032 | S151: 2033 | T151: 2034 | U151: 2035 | V151: 2036 | W151: 2037 | X151: 2038 | Y151: 2039 | Z151: 2040 | AA151: 2041 | AB151: 2042 | AC151: 2043 | AD151: 2044 | AE151: 2045 | AF151: 2046 | AG151: 2047 | AH151: 2048 | AI151: 2049 | AJ151: 2050 | AK151: 2051 | AL151: 2052 | AM151: 2053 | AN151: 2054 | AO151: 2055 | AP151: 2056 | AQ151: 2057 | AR151: 2058 | AS151: 2059 | AT151: 2060 | AU151: 2061 | AV151: 2062 | AW151: 2063 | AX151: 2064 | AY151: 2065 | AZ151: 2066 | BA151: 2067 | BB151: 2068 | BC151: 2069 | BD151: 2070 | BE151: 2071
B152: conventional: Within appraisal period (yes/no) | C152: 1 | D152: =IF(D151<Description!$C$8+'Operating results'!$D$6,1,0) -> 0 | E152: =IF(E151<Description!$C$8+'Operating results'!$D$6,1,0) -> 0 | F152: =IF(F151<Description!$C$8+'Operating results'!$D$6,1,0) -> 0 | G152: =IF(G151<Description!$C$8+'Operating results'!$D$6,1,0) -> 0 | H152: =IF(H151<Description!$C$8+'Operating results'!$D$6,1,0) -> 0 | I152: =IF(I151<Description!$C$8+'Operating results'!$D$6,1,0) -> 0 | J152: =IF(J151<Description!$C$8+'Operating results'!$D$6,1,0) -> 0 | K152: =IF(K151<Description!$C$8+'Operating results'!$D$6,1,0) -> 0 | L152: =IF(L151<Description!$C$8+'Operating results'!$D$6,1,0) -> 0 | M152: =IF(M151<Description!$C$8+'Operating results'!$D$6,1,0) -> 0 | N152: =IF(N151<Description!$C$8+'Operating results'!$D$6,1,0) -> 0 | O152: =IF(O151<Description!$C$8+'Operating results'!$D$6,1,0) -> 0 | P152: =IF(P151<Description!$C$8+'Operating results'!$D$6,1,0) -> 0 | Q152: =IF(Q151<Description!$C$8+'Operating results'!$D$6,1,0) -> 0 | R152: =IF(R151<Description!$C$8+'Operating results'!$D$6,1,0) -> 0 | S152: =IF(S151<Description!$C$8+'Operating results'!$D$6,1,0) -> 0 | T152: =IF(T151<Description!$C$8+'Operating results'!$D$6,1,0) -> 0 | U152: =IF(U151<Description!$C$8+'Operating results'!$D$6,1,0) -> 0 | V152: =IF(V151<Description!$C$8+'Operating results'!$D$6,1,0) -> 0 | W152: =IF(W151<Description!$C$8+'Operating results'!$D$6,1,0) -> 0 | X152: =IF(X151<Description!$C$8+'Operating results'!$D$6,1,0) -> 0 | Y152: =IF(Y151<Description!$C$8+'Operating results'!$D$6,1,0) -> 0 | Z152: =IF(Z151<Description!$C$8+'Operating results'!$D$6,1,0) -> 0 | AA152: =IF(AA151<Description!$C$8+'Operating results'!$D$6,1,0) -> 0 | AB152: =IF(AB151<Description!$C$8+'Operating results'!$D$6,1,0) -> 0 | AC152: =IF(AC151<Description!$C$8+'Operating results'!$D$6,1,0) -> 0 | AD152: =IF(AD151<Description!$C$8+'Operating results'!$D$6,1,0) -> 0 | AE152: =IF(AE151<Description!$C$8+'Operating results'!$D$6,1,0) -> 0 | AF152: =IF(AF151<Description!$C$8+'Operating results'!$D$6,1,0) -> 0 | AG152: =IF(AG151<Description!$C$8+'Operating results'!$D$6,1,0) -> 0 | AH152: =IF(AH151<Description!$C$8+'Operating results'!$D$6,1,0) -> 0 | AI152: =IF(AI151<Description!$C$8+'Operating results'!$D$6,1,0) -> 0 | AJ152: =IF(AJ151<Description!$C$8+'Operating results'!$D$6,1,0) -> 0 | AK152: =IF(AK151<Description!$C$8+'Operating results'!$D$6,1,0) -> 0 | AL152: =IF(AL151<Description!$C$8+'Operating results'!$D$6,1,0) -> 0 | AM152: =IF(AM151<Description!$C$8+'Operating results'!$D$6,1,0) -> 0 | AN152: =IF(AN151<Description!$C$8+'Operating results'!$D$6,1,0) -> 0 | AO152: =IF(AO151<Description!$C$8+'Operating results'!$D$6,1,0) -> 0 | AP152: =IF(AP151<Description!$C$8+'Operating results'!$D$6,1,0) -> 0 | AQ152: =IF(AQ151<Description!$C$8+'Operating results'!$D$6,1,0) -> 0 | AR152: =IF(AR151<Description!$C$8+'Operating results'!$D$6,1,0) -> 0 | AS152: =IF(AS151<Description!$C$8+'Operating results'!$D$6,1,0) -> 0 | AT152: =IF(AT151<Description!$C$8+'Operating results'!$D$6,1,0) -> 0 | AU152: =IF(AU151<Description!$C$8+'Operating results'!$D$6,1,0) -> 0 | AV152: =IF(AV151<Description!$C$8+'Operating results'!$D$6,1,0) -> 0 | AW152: =IF(AW151<Description!$C$8+'Operating results'!$D$6,1,0) -> 0 | AX152: =IF(AX151<Description!$C$8+'Operating results'!$D$6,1,0) -> 0 | AY152: =IF(AY151<Description!$C$8+'Operating results'!$D$6,1,0) -> 0 | AZ152: =IF(AZ151<Description!$C$8+'Operating results'!$D$6,1,0) -> 0 | BA152: =IF(BA151<Description!$C$8+'Operating results'!$D$6,1,0) -> 0 | BB152: =IF(BB151<Description!$C$8+'Operating results'!$D$6,1,0) -> 0 | BC152: =IF(BC151<Description!$C$8+'Operating results'!$D$6,1,0) -> 0 | BD152: =IF(BD151<Description!$C$8+'Operating results'!$D$6,1,0) -> 0 | BE152: =IF(BE151<Description!$C$8+'Operating results'!$D$6,1,0) -> 0
B153: conventional: Discount factor | C153: =(1+$C$7)^(-C151+2016)*C152 -> 1 | D153: =(1+$C$7)^(-D151+2016)*D152 -> 0 | E153: 0 | F153: 0 | G153: 0 | H153: 0 | I153: 0 | J153: 0 | K153: 0 | L153: 0 | M153: 0 | N153: 0 | O153: 0 | P153: 0 | Q153: 0 | R153: 0 | S153: 0 | T153: 0 | U153: 0 | V153: 0 | W153: 0 | X153: 0 | Y153: 0 | Z153: 0 | AA153: 0 | AB153: 0 | AC153: 0 | AD153: 0 | AE153: 0 | AF153: 0 | AG153: 0 | AH153: 0 | AI153: 0 | AJ153: 0 | AK153: 0 | AL153: 0 | AM153: 0 | AN153: 0 | AO153: 0 | AP153: 0 | AQ153: 0 | AR153: 0 | AS153: 0 | AT153: 0 | AU153: 0 | AV153: 0 | AW153: 0 | AX153: 0 | AY153: 0 | AZ153: 0 | BA153: 0 | BB153: 0 | BC153: 0 | BD153: 0 | BE153: 0
B154: green: Within appraisal period (yes/no) | C154: 1 | D154: =IF(D151<Description!$C$8+'Operating results'!$E$6,1,0) -> 0 | E154: =IF(E151<Description!$C$8+'Operating results'!$E$6,1,0) -> 0 | F154: =IF(F151<Description!$C$8+'Operating results'!$E$6,1,0) -> 0 | G154: =IF(G151<Description!$C$8+'Operating results'!$E$6,1,0) -> 0 | H154: =IF(H151<Description!$C$8+'Operating results'!$E$6,1,0) -> 0 | I154: =IF(I151<Description!$C$8+'Operating results'!$E$6,1,0) -> 0 | J154: =IF(J151<Description!$C$8+'Operating results'!$E$6,1,0) -> 0 | K154: =IF(K151<Description!$C$8+'Operating results'!$E$6,1,0) -> 0 | L154: =IF(L151<Description!$C$8+'Operating results'!$E$6,1,0) -> 0 | M154: =IF(M151<Description!$C$8+'Operating results'!$E$6,1,0) -> 0 | N154: =IF(N151<Description!$C$8+'Operating results'!$E$6,1,0) -> 0 | O154: =IF(O151<Description!$C$8+'Operating results'!$E$6,1,0) -> 0 | P154: =IF(P151<Description!$C$8+'Operating results'!$E$6,1,0) -> 0 | Q154: =IF(Q151<Description!$C$8+'Operating results'!$E$6,1,0) -> 0 | R154: =IF(R151<Description!$C$8+'Operating results'!$E$6,1,0) -> 0 | S154: =IF(S151<Description!$C$8+'Operating results'!$E$6,1,0) -> 0 | T154: =IF(T151<Description!$C$8+'Operating results'!$E$6,1,0) -> 0 | U154: =IF(U151<Description!$C$8+'Operating results'!$E$6,1,0) -> 0 | V154: =IF(V151<Description!$C$8+'Operating results'!$E$6,1,0) -> 0 | W154: =IF(W151<Description!$C$8+'Operating results'!$E$6,1,0) -> 0 | X154: =IF(X151<Description!$C$8+'Operating results'!$E$6,1,0) -> 0 | Y154: =IF(Y151<Description!$C$8+'Operating results'!$E$6,1,0) -> 0 | Z154: =IF(Z151<Description!$C$8+'Operating results'!$E$6,1,0) -> 0 | AA154: =IF(AA151<Description!$C$8+'Operating results'!$E$6,1,0) -> 0 | AB154: =IF(AB151<Description!$C$8+'Operating results'!$E$6,1,0) -> 0 | AC154: =IF(AC151<Description!$C$8+'Operating results'!$E$6,1,0) -> 0 | AD154: =IF(AD151<Description!$C$8+'Operating results'!$E$6,1,0) -> 0 | AE154: =IF(AE151<Description!$C$8+'Operating results'!$E$6,1,0) -> 0 | AF154: =IF(AF151<Description!$C$8+'Operating results'!$E$6,1,0) -> 0 | AG154: =IF(AG151<Description!$C$8+'Operating results'!$E$6,1,0) -> 0 | AH154: =IF(AH151<Description!$C$8+'Operating results'!$E$6,1,0) -> 0 | AI154: =IF(AI151<Description!$C$8+'Operating results'!$E$6,1,0) -> 0 | AJ154: =IF(AJ151<Description!$C$8+'Operating results'!$E$6,1,0) -> 0 | AK154: =IF(AK151<Description!$C$8+'Operating results'!$E$6,1,0) -> 0 | AL154: =IF(AL151<Description!$C$8+'Operating results'!$E$6,1,0) -> 0 | AM154: =IF(AM151<Description!$C$8+'Operating results'!$E$6,1,0) -> 0 | AN154: =IF(AN151<Description!$C$8+'Operating results'!$E$6,1,0) -> 0 | AO154: =IF(AO151<Description!$C$8+'Operating results'!$E$6,1,0) -> 0 | AP154: =IF(AP151<Description!$C$8+'Operating results'!$E$6,1,0) -> 0 | AQ154: =IF(AQ151<Description!$C$8+'Operating results'!$E$6,1,0) -> 0 | AR154: =IF(AR151<Description!$C$8+'Operating results'!$E$6,1,0) -> 0 | AS154: =IF(AS151<Description!$C$8+'Operating results'!$E$6,1,0) -> 0 | AT154: =IF(AT151<Description!$C$8+'Operating results'!$E$6,1,0) -> 0 | AU154: =IF(AU151<Description!$C$8+'Operating results'!$E$6,1,0) -> 0 | AV154: =IF(AV151<Description!$C$8+'Operating results'!$E$6,1,0) -> 0 | AW154: =IF(AW151<Description!$C$8+'Operating results'!$E$6,1,0) -> 0 | AX154: =IF(AX151<Description!$C$8+'Operating results'!$E$6,1,0) -> 0 | AY154: =IF(AY151<Description!$C$8+'Operating results'!$E$6,1,0) -> 0 | AZ154: =IF(AZ151<Description!$C$8+'Operating results'!$E$6,1,0) -> 0 | BA154: =IF(BA151<Description!$C$8+'Operating results'!$E$6,1,0) -> 0 | BB154: =IF(BB151<Description!$C$8+'Operating results'!$E$6,1,0) -> 0 | BC154: =IF(BC151<Description!$C$8+'Operating results'!$E$6,1,0) -> 0 | BD154: =IF(BD151<Description!$C$8+'Operating results'!$E$6,1,0) -> 0 | BE154: =IF(BE151<Description!$C$8+'Operating results'!$E$6,1,0) -> 0
B155: green: Discount factor | C155: =(1+$C$7)^(-C$151+2016)*C154 -> 1 | D155: 0 | E155: 0 | F155: 0 | G155: 0 | H155: 0 | I155: 0 | J155: 0 | K155: 0 | L155: 0 | M155: 0 | N155: 0 | O155: 0 | P155: 0 | Q155: 0 | R155: 0 | S155: 0 | T155: 0 | U155: 0 | V155: 0 | W155: 0 | X155: 0 | Y155: 0 | Z155: 0 | AA155: 0 | AB155: 0 | AC155: 0 | AD155: 0 | AE155: 0 | AF155: 0 | AG155: 0 | AH155: 0 | AI155: =(1+$C$7)^(-AI$151+2016)*AI154 -> 0 | AJ155: 0 | AK155: 0 | AL155: 0 | AM155: 0 | AN155: 0 | AO155: 0 | AP155: 0 | AQ155: 0 | AR155: 0 | AS155: 0 | AT155: 0 | AU155: 0 | AV155: 0 | AW155: 0 | AX155: 0 | AY155: 0 | AZ155: 0 | BA155: 0 | BB155: 0 | BC155: 0 | BD155: 0 | BE155: 0
B157: Conventional investment
B158: Operating results
B159: Operating revenue | C159: =C126*C153 -> 0 | D159: =D126*D153 -> 0 | E159: 0 | F159: 0 | G159: 0 | H159: 0 | I159: 0 | J159: 0 | K159: 0 | L159: 0 | M159: 0 | N159: 0 | O159: 0 | P159: 0 | Q159: 0 | R159: 0 | S159: 0 | T159: 0 | U159: 0 | V159: 0 | W159: 0 | X159: 0 | Y159: 0 | Z159: 0 | AA159: 0 | AB159: 0 | AC159: 0 | AD159: 0 | AE159: 0 | AF159: 0 | AG159: 0 | AH159: 0 | AI159: 0 | AJ159: 0 | AK159: 0 | AL159: 0 | AM159: 0 | AN159: 0 | AO159: 0 | AP159: 0 | AQ159: 0 | AR159: 0 | AS159: 0 | AT159: 0 | AU159: 0 | AV159: 0 | AW159: 0 | AX159: 0 | AY159: 0 | AZ159: 0 | BA159: 0 | BB159: 0 | BC159: 0 | BD159: 0 | BE159: 0
B160: Operating cost | C160: =C127*C153 -> 0 | D160: =D127*D153 -> 0 | E160: 0 | F160: 0 | G160: 0 | H160: 0 | I160: 0 | J160: 0 | K160: 0 | L160: 0 | M160: 0 | N160: 0 | O160: 0 | P160: 0 | Q160: 0 | R160: 0 | S160: 0 | T160: 0 | U160: 0 | V160: 0 | W160: 0 | X160: 0 | Y160: 0 | Z160: 0 | AA160: 0 | AB160: 0 | AC160: 0 | AD160: 0 | AE160: 0 | AF160: 0 | AG160: 0 | AH160: 0 | AI160: 0 | AJ160: 0 | AK160: 0 | AL160: 0 | AM160: 0 | AN160: 0 | AO160: 0 | AP160: 0 | AQ160: 0 | AR160: 0 | AS160: 0 | AT160: 0 | AU160: 0 | AV160: 0 | AW160: 0 | AX160: 0 | AY160: 0 | AZ160: 0 | BA160: 0 | BB160: 0 | BC160: 0 | BD160: 0 | BE160: 0
B161: Financial flows
B162: Inflows | C162: =C140*C153 -> 0 | D162: =D140*D153 -> 0 | E162: 0 | F162: 0 | G162: 0 | H162: 0 | I162: 0 | J162: 0 | K162: 0 | L162: 0 | M162: 0 | N162: 0 | O162: 0 | P162: 0 | Q162: 0 | R162: 0 | S162: 0 | T162: 0 | U162: 0 | V162: 0 | W162: 0 | X162: 0 | Y162: 0 | Z162: 0 | AA162: 0 | AB162: 0 | AC162: 0 | AD162: 0 | AE162: 0 | AF162: 0 | AG162: 0 | AH162: 0 | AI162: 0 | AJ162: 0 | AK162: 0 | AL162: 0 | AM162: 0 | AN162: 0 | AO162: 0 | AP162: 0 | AQ162: 0 | AR162: 0 | AS162: 0 | AT162: 0 | AU162: 0 | AV162: 0 | AW162: 0 | AX162: 0 | AY162: 0 | AZ162: 0 | BA162: 0 | BB162: 0 | BC162: 0 | BD162: 0 | BE162: 0
B163: Capital cost | C163: =C141*C153 -> 0 | D163: =D141*D153 -> 0 | E163: 0 | F163: 0 | G163: 0 | H163: 0 | I163: 0 | J163: 0 | K163: 0 | L163: 0 | M163: 0 | N163: 0 | O163: 0 | P163: 0 | Q163: 0 | R163: 0 | S163: 0 | T163: 0 | U163: 0 | V163: 0 | W163: 0 | X163: 0 | Y163: 0 | Z163: 0 | AA163: 0 | AB163: 0 | AC163: 0 | AD163: 0 | AE163: 0 | AF163: 0 | AG163: 0 | AH163: 0 | AI163: 0 | AJ163: 0 | AK163: 0 | AL163: 0 | AM163: 0 | AN163: 0 | AO163: 0 | AP163: 0 | AQ163: 0 | AR163: 0 | AS163: 0 | AT163: 0 | AU163: 0 | AV163: 0 | AW163: 0 | AX163: 0 | AY163: 0 | AZ163: 0 | BA163: 0 | BB163: 0 | BC163: 0 | BD163: 0 | BE163: 0
B164: Social costs of emissions | C164: =C98*C153 -> 0 | D164: 0 | E164: 0 | F164: 0 | G164: 0 | H164: 0 | I164: 0 | J164: 0 | K164: 0 | L164: 0 | M164: 0 | N164: 0 | O164: 0 | P164: 0 | Q164: 0 | R164: 0 | S164: 0 | T164: 0 | U164: 0 | V164: 0 | W164: 0 | X164: 0 | Y164: 0 | Z164: 0 | AA164: 0 | AB164: 0 | AC164: 0 | AD164: 0 | AE164: 0 | AF164: 0 | AG164: 0 | AH164: 0 | AI164: =AI98*AI153 -> 0 | AJ164: 0 | AK164: 0 | AL164: 0 | AM164: 0 | AN164: 0 | AO164: 0 | AP164: 0 | AQ164: 0 | AR164: 0 | AS164: 0 | AT164: 0 | AU164: 0 | AV164: 0 | AW164: 0 | AX164: 0 | AY164: 0 | AZ164: 0 | BA164: 0 | BB164: 0 | BC164: 0 | BD164: 0 | BE164: 0
B165: Social costs of waste treatment | C165: =C115*C153 -> 0 | D165: 0 | E165: 0 | F165: 0 | G165: 0 | H165: 0 | I165: 0 | J165: 0 | K165: 0 | L165: 0 | M165: 0 | N165: 0 | O165: 0 | P165: 0 | Q165: 0 | R165: 0 | S165: 0 | T165: 0 | U165: 0 | V165: 0 | W165: 0 | X165: 0 | Y165: 0 | Z165: 0 | AA165: 0 | AB165: 0 | AC165: 0 | AD165: 0 | AE165: 0 | AF165: 0 | AG165: 0 | AH165: 0 | AI165: =AI115*AI153 -> 0 | AJ165: 0 | AK165: 0 | AL165: 0 | AM165: 0 | AN165: 0 | AO165: 0 | AP165: 0 | AQ165: 0 | AR165: 0 | AS165: 0 | AT165: 0 | AU165: 0 | AV165: 0 | AW165: 0 | AX165: 0 | AY165: 0 | AZ165: 0 | BA165: 0 | BB165: 0 | BC165: 0 | BD165: 0 | BE165: 0
B166: Implementation: social costs of emissions | C166: =D106*C153 -> 0
B167: Implementation: social costs of waste treatment | C167: =D119*C153 -> 0
B168: Social costs of indirect emissions | C168: =C153*C102 -> 0 | D168: 0 | E168: 0 | F168: 0 | G168: 0 | H168: 0 | I168: 0 | J168: 0 | K168: 0 | L168: 0 | M168: 0 | N168: 0 | O168: 0 | P168: 0 | Q168: 0 | R168: 0 | S168: 0 | T168: 0 | U168: 0 | V168: 0 | W168: 0 | X168: 0 | Y168: 0 | Z168: 0 | AA168: 0 | AB168: 0 | AC168: 0 | AD168: 0 | AE168: 0 | AF168: 0 | AG168: 0 | AH168: 0 | AI168: =AI153*AI102 -> 0 | AJ168: 0 | AK168: 0 | AL168: 0 | AM168: 0 | AN168: 0 | AO168: 0 | AP168: 0 | AQ168: 0 | AR168: 0 | AS168: 0 | AT168: 0 | AU168: 0 | AV168: 0 | AW168: 0 | AX168: 0 | AY168: 0 | AZ168: 0 | BA168: 0 | BB168: 0 | BC168: 0 | BD168: 0 | BE168: 0
B170: Green investment
B171: Operating results
B172: Operating revenue | C172: =C131*C155 -> 0 | D172: =D131*D155 -> 0 | E172: 0 | F172: 0 | G172: 0 | H172: 0 | I172: 0 | J172: 0 | K172: 0 | L172: 0 | M172: 0 | N172: 0 | O172: 0 | P172: 0 | Q172: 0 | R172: 0 | S172: 0 | T172: 0 | U172: 0 | V172: 0 | W172: 0 | X172: 0 | Y172: 0 | Z172: 0 | AA172: 0 | AB172: 0 | AC172: 0 | AD172: 0 | AE172: 0 | AF172: 0 | AG172: 0 | AH172: 0 | AI172: 0 | AJ172: 0 | AK172: 0 | AL172: 0 | AM172: 0 | AN172: 0 | AO172: 0 | AP172: 0 | AQ172: 0 | AR172: 0 | AS172: 0 | AT172: 0 | AU172: 0 | AV172: 0 | AW172: 0 | AX172: 0 | AY172: 0 | AZ172: 0 | BA172: 0 | BB172: 0 | BC172: 0 | BD172: 0 | BE172: 0
B173: Operating cost | C173: =C132*C155 -> 0 | D173: =D132*D155 -> 0 | E173: 0 | F173: 0 | G173: 0 | H173: 0 | I173: 0 | J173: 0 | K173: 0 | L173: 0 | M173: 0 | N173: 0 | O173: 0 | P173: 0 | Q173: 0 | R173: 0 | S173: 0 | T173: 0 | U173: 0 | V173: 0 | W173: 0 | X173: 0 | Y173: 0 | Z173: 0 | AA173: 0 | AB173: 0 | AC173: 0 | AD173: 0 | AE173: 0 | AF173: 0 | AG173: 0 | AH173: 0 | AI173: 0 | AJ173: 0 | AK173: 0 | AL173: 0 | AM173: 0 | AN173: 0 | AO173: 0 | AP173: 0 | AQ173: 0 | AR173: 0 | AS173: 0 | AT173: 0 | AU173: 0 | AV173: 0 | AW173: 0 | AX173: 0 | AY173: 0 | AZ173: 0 | BA173: 0 | BB173: 0 | BC173: 0 | BD173: 0 | BE173: 0
B174: Financial flows
B175: Inflows | C175: =C145*C155 -> 0 | D175: =D145*D155 -> 0 | E175: 0 | F175: 0 | G175: 0 | H175: 0 | I175: 0 | J175: 0 | K175: 0 | L175: 0 | M175: 0 | N175: 0 | O175: 0 | P175: 0 | Q175: 0 | R175: 0 | S175: 0 | T175: 0 | U175: 0 | V175: 0 | W175: 0 | X175: 0 | Y175: 0 | Z175: 0 | AA175: 0 | AB175: 0 | AC175: 0 | AD175: 0 | AE175: 0 | AF175: 0 | AG175: 0 | AH175: 0 | AI175: 0 | AJ175: 0 | AK175: 0 | AL175: 0 | AM175: 0 | AN175: 0 | AO175: 0 | AP175: 0 | AQ175: 0 | AR175: 0 | AS175: 0 | AT175: 0 | AU175: 0 | AV175: 0 | AW175: 0 | AX175: 0 | AY175: 0 | AZ175: 0 | BA175: 0 | BB175: 0 | BC175: 0 | BD175: 0 | BE175: 0
B176: Capital cost | C176: =C146*C155 -> 0 | D176: =D146*D155 -> 0 | E176: 0 | F176: 0 | G176: 0 | H176: 0 | I176: 0 | J176: 0 | K176: 0 | L176: 0 | M176: 0 | N176: 0 | O176: 0 | P176: 0 | Q176: 0 | R176: 0 | S176: 0 | T176: 0 | U176: 0 | V176: 0 | W176: 0 | X176: 0 | Y176: 0 | Z176: 0 | AA176: 0 | AB176: 0 | AC176: 0 | AD176: 0 | AE176: 0 | AF176: 0 | AG176: 0 | AH176: 0 | AI176: 0 | AJ176: 0 | AK176: 0 | AL176: 0 | AM176: 0 | AN176: 0 | AO176: 0 | AP176: 0 | AQ176: 0 | AR176: 0 | AS176: 0 | AT176: 0 | AU176: 0 | AV176: 0 | AW176: 0 | AX176: 0 | AY176: 0 | AZ176: 0 | BA176: 0 | BB176: 0 | BC176: 0 | BD176: 0 | BE176: 0
B177: Social costs of emissions | C177: =C99*C155 -> 0 | D177: 0 | E177: 0 | F177: 0 | G177: 0 | H177: 0 | I177: 0 | J177: 0 | K177: 0 | L177: 0 | M177: 0 | N177: 0 | O177: 0 | P177: 0 | Q177: 0 | R177: 0 | S177: 0 | T177: 0 | U177: 0 | V177: 0 | W177: 0 | X177: 0 | Y177: 0 | Z177: 0 | AA177: 0 | AB177: 0 | AC177: 0 | AD177: 0 | AE177: 0 | AF177: 0 | AG177: 0 | AH177: 0 | AI177: =AI99*AI155 -> 0 | AJ177: 0 | AK177: 0 | AL177: 0 | AM177: 0 | AN177: 0 | AO177: 0 | AP177: 0 | AQ177: 0 | AR177: 0 | AS177: 0 | AT177: 0 | AU177: 0 | AV177: 0 | AW177: 0 | AX177: 0 | AY177: 0 | AZ177: 0 | BA177: 0 | BB177: 0 | BC177: 0 | BD177: 0 | BE177: 0
B178: Social costs of waste treatment | C178: =C116*C155 -> 0 | D178: =D116*D155 -> 0 | E178: 0 | F178: 0 | G178: 0 | H178: 0 | I178: 0 | J178: 0 | K178: 0 | L178: 0 | M178: 0 | N178: 0 | O178: 0 | P178: 0 | Q178: 0 | R178: 0 | S178: 0 | T178: 0 | U178: 0 | V178: 0 | W178: 0 | X178: 0 | Y178: 0 | Z178: 0 | AA178: 0 | AB178: 0 | AC178: 0 | AD178: 0 | AE178: 0 | AF178: 0 | AG178: 0 | AH178: 0 | AI178: 0 | AJ178: 0 | AK178: 0 | AL178: 0 | AM178: 0 | AN178: 0 | AO178: 0 | AP178: 0 | AQ178: 0 | AR178: 0 | AS178: 0 | AT178: 0 | AU178: 0 | AV178: 0 | AW178: 0 | AX178: 0 | AY178: 0 | AZ178: 0 | BA178: 0 | BB178: 0 | BC178: 0 | BD178: 0 | BE178: 0
B179: Implementation: social costs of emissions | C179: =D107*C155 -> 0
B180: Implementation: social costs of waste treatment | C180: =D120*C155 -> 0
B181: Social costs of indirect emissions | C181: =C155*C103 -> 0 | D181: 0 | E181: 0 | F181: 0 | G181: 0 | H181: 0 | I181: 0 | J181: 0 | K181: 0 | L181: 0 | M181: 0 | N181: 0 | O181: 0 | P181: 0 | Q181: 0 | R181: 0 | S181: 0 | T181: 0 | U181: 0 | V181: 0 | W181: 0 | X181: 0 | Y181: 0 | Z181: 0 | AA181: 0 | AB181: 0 | AC181: 0 | AD181: 0 | AE181: 0 | AF181: 0 | AG181: 0 | AH181: 0 | AI181: =AI155*AI103 -> 0 | AJ181: 0 | AK181: 0 | AL181: 0 | AM181: 0 | AN181: 0 | AO181: 0 | AP181: 0 | AQ181: 0 | AR181: 0 | AS181: 0 | AT181: 0 | AU181: 0 | AV181: 0 | AW181: 0 | AX181: 0 | AY181: 0 | AZ181: 0 | BA181: 0 | BB181: 0 | BC181: 0 | BD181: 0 | BE181: 0

Sheet VBA (hidden)
E5: Zelleninhalte löschen
E6: Range gibt dabei die Zellen an
E7: Option Explicit Sub Zellinhalte_löschen() Range("b46,C15,c16,c26,d26,c30,c31,c36,d36,e36,f36,c37,d37,e37,f37,d41:d43,d30:d31,g48,g47,c61,c62").ClearContents End Sub
E10: Scroll Area beschränken
E12: VBA starten, oben links die Tabelle auswählen und dann Zeile 1 bis X eingeben wie folgt: 1:X
